Workbook

Sheet Instructions
C35: admin@fleetforum.org

Sheet General Info
B4: Question | C4: Help Text | D4: Example | E4: Your Answer
B5: Organisation Name | C5: Enter the full name of your organisation | D5: Example NGO | E5: Example Organisation
B6: Who is filling this in? | C6: Enter your name | D6: Jane Doe | E6: Jane Doe
B7: Date of Analysis | C7: Today's date (e.g. 28 May 2025) | D7: 22 May 2025 | E7: 22 May 2025
B8: Period Covered | C8: Specify the period this analysis is for (e.g. Jan 2025 – Dec 2025). | D8: Jan 2025 – Dec 2025 | E8: Jan 2025 – Dec 2025
B9: Currency | C9: Currency used for cost inputs (€, $, etc.) | D9: € | E9: $
B10: Petrol price per litre | C10: Average cost per litre of petrol in your country | D10: 1.85 | E10: 1.85
B11: Diesel price per litre | C11: Average cost per litre of diesel in your country | D11: 1.5 | E11: 1.5
B12: Electricity price per kWh (if using EVs) | C12: Cost per kWh for electric vehicles (optional) | D12: 0.25 | E12: 0.25
B13: CO₂ per litre (Diesel) | C13: Default emission factor for diesel; only change if you have more accurate country-specific data. | D13: 2.68 | E13: 2.68
B14: CO₂ per litre (Petrol) | C14: Default emission factor for petrol; only change if you have more accurate country-specific data. | D14: 2.31 | E14: 2.31
B15: CO₂ per kWh (Electricity) | C15: Average CO₂ per kWh (optional) | D15: 0.475 | E15: 0.475
B16: ="One-time project cost (" & $E$9 & ")" -> One-time project cost ($) | C16: (Optional) One-time investment required to join or enable the ride sharing scheme (e.g. booking system, software). | D16: 5000 | E16: 500
B17: ="Monthly cost of a driver (" & $E$9& ")" -> Monthly cost of a driver ($) | C17: Monthly salary + overhead of 1 driver. | D17: 1000 | E17: 1000
B18: ="Monthly cost of a manager (" & $E$9 & ")" -> Monthly cost of a manager ($) | C18: Monthly salary + overhead of a fleet or project manager (e.g. phone, laptop, per diem). | D18: 2500 | E18: 1500
B19: Total number of drivers | C19: Total number of drivers in your organisation, used to estimate driver-related savings. | D19: 15 | E19: 15
B20: % time manager spends on this project | C20: Percentage of time the manager will spend on this project. Example: 10 = ~4 hours/week based on a 40-hour work week. | D20: 15 | E20: 5%
B21: ="Monthly HR/support costs (" & $E$9 & ")" -> Monthly HR/support costs ($) | C21: (Optional) Monthly cost of administrative, HR, or logistics support for the scheme. | D21: 800 | E21: 800
B22: % of transport demand to be shared | C22: What percentage of your current transport demand do you expect to shift to ride sharing? | D22: 10 | E22: 20%
B23: % of shared trips using your vehicles | C23: What percentage of shared trips will be completed using your organisation’s own vehicles (vs. external vehicles)? | D23: 40 | E23: 50%

Sheet Your Fleet Data
P27: Helper columns, not for users
F28: All amounts should be entered per vehicle, per month | L28: Owned Vehicles | S28: 10% Scenario | AB28: 25% Scenario | AK28: 50% Scenario | AT28: User Scenario
B29: Vehicle Type | C29: Fuel Type | D29: Ownership | E29: Number of vehicles | F29: Avg monthly KM per vehicle | G29: Fuel cons. (l/100km) | H29: Electric cons. (kWh/100km) | I29: Monthly Lease/Rent | J29: Monthly Insurance | K29: Avg monthly maintenance | L29: Purchase Price | M29: Purchase Year | N29: Useful Life (years) | O29: Estimated Residual Value | P29: Monthly depreciation | Q29: Monthly fuel/energy cost per vehicle | R29: Monthly total cost per vehicle | S29: Monthly KM reduced (10%) | T29: Fuel/Energy costs saved (10%) | U29: Maintenance cost saved (10%) | V29: Fuel saved (10%) | W29: Energy saved (10%) | X29: CO2 Saved (10%) | Y29: Deprecation saved (10%) | Z29: Lease/rent saved (10%) | AA29: Insurance saved (10%) | AB29: Monthly KM reduced (25%) | AC29: Fuel/Energy costs saved (25%) | AD29: Maintenance cost saved (25%) | AE29: Fuel Saved (25%) | AF29: Energy Saved (25%) | AG29: CO2 Saved (25%) | AH29: Deprecation saved (25%) | AI29: Lease/rent saved (25%) | AJ29: Insurance saved (25%) | AK29: Monthly KM reduced (50%) | AL29: Fuel/Energy costs saved (50%) | AM29: Maintenance cost saved (50%) | AN29: Fuel Saved (50%) | AO29: Energy Saved (50%) | AP29: CO2 Saved (50%) | AQ29: Deprecation saved (50%) | AR29: Lease/rent saved (50%) | AS29: Insurance saved (50%) | AT29: Monthly KM Reduced (User %) | AU29: Fuel Saved (User %) | AV29: Energy Saved (User %) | AW29: Fuel/Energy Cost Saved (User %) | AX29: CO2 Saved (User %) | AY29: Maintenance costs saved (user %) | AZ29: Deprecation saved (user %) | BA29: Lease/rent saved (user%) | BB29: Insurance saved (User%)
B30: Light vehicle (Sedan/City vehicle) | C30: Petrol | D30: Rented | E30: 5 | F30: 2000 | G30: 9 | I30: 250 | J30: 75 | K30: 120 | P30: =IF(D30="Owned",(L30-O30)/N30/12,"") ->  | Q30: =IF(Table1[[#This Row],[Fuel Type]]="Diesel", (Table1[[#This Row],[Avg monthly KM per vehicle]]/100)*Table1[[#This Row],[Fuel cons. (l/100km)]]*('General Info'!$E$11), IF(Table1[[#This Row],[Fuel Type]]="Petrol", (Table1[[#This Row],[Avg monthly KM per vehicle]]/100)*Table1[[#This Row],[Fuel cons. (l/100km)]]*('General Info'!$E$10), IF(Table1[[#This Row],[Fuel Type]]="Electric", (Table1[[#This Row],[Avg monthly KM per vehicle]]/100)*Table1[[#This Row],[Electric cons. (kWh/100km)]]*('General Info'!$E$12), ""))) -> 333.00 | R30: =IF(Table1[[#This Row],[Ownership]]="Owned",Table1[[#This Row],[Monthly Insurance ]]+Table1[[#This Row],[Avg monthly maintenance]]+Table1[[#This Row],[Monthly depreciation]]+Table1[[#This Row],[Monthly fuel/energy cost per vehicle]],Table1[[#This Row],[Monthly Insurance ]]+Table1[[#This Row],[Avg monthly maintenance]]+Table1[[#This Row],[Monthly Lease/Rent ]]+Table1[[#This Row],[Monthly fuel/energy cost per vehicle]]) -> 778.00 | S30: =(Table1[[#This Row],[Number of vehicles]] * Table1[[#This Row],[Avg monthly KM per vehicle]] *0.1)*(1-'General Info'!$E$23) -> 500 | T30: =IF(Table1[[#This Row],[Fuel Type]]="Electric", (Table1[[#This Row],[Monthly KM reduced (10%)]] * (Table1[[#This Row],[Electric cons. (kWh/100km)]] / 100)) * 'General Info'!$E$12, (Table1[[#This Row],[Monthly KM reduced (10%)]] * (Table1[[#This Row],[Fuel cons. (l/100km)]] / 100)) * IF(Table1[[#This Row],[Fuel Type]]="Petrol", 'General Info'!$E$10, 'General Info'!$E$11) ) -> 83.25 | U30: =Table1[[#This Row],[Avg monthly maintenance]]*0.1*(1-'General Info'!$E$23) -> 6.00 | V30: =IF(OR(Table1[[#This Row],[Fuel Type]]="Petrol", Table1[[#This Row],[Fuel Type]]="Diesel"), Table1[[#This Row],[Monthly KM reduced (10%)]] * (Table1[[#This Row],[Fuel cons. (l/100km)]] / 100), "") -> 45.00 | W30: =IF(Table1[[#This Row],[Fuel Type]]="Electric", Table1[[#This Row],[Monthly KM reduced (10%)]] * (Table1[[#This Row],[Electric cons. (kWh/100km)]] / 100), "") ->  | X30: =IF(Table1[[#This Row],[Fuel Type]]="Petrol", Table1[[#This Row],[Fuel saved (10%)]] * 'General Info'!$E$14, IF(Table1[[#This Row],[Fuel Type]]="Diesel", Table1[[#This Row],[Fuel saved (10%)]] * 'General Info'!$E$13, IF(Table1[[#This Row],[Fuel Type]]="Electric", Table1[[#This Row],[Energy saved (10%)]] * 'General Info'!$E$15, ""))) -> 103.95 | Y30: =IF(D30="Owned",('ROI & Scenario Analysis'!$C$4*Table1[[#This Row],[Number of vehicles]])*Table1[[#This Row],[Monthly depreciation]],"") ->  | Z30: =IF(D30="Rented",('ROI & Scenario Analysis'!$C$4*Table1[[#This Row],[Number of vehicles]])*Table1[[#This Row],[Monthly Lease/Rent ]],"") -> 75.00 | AA30: ='ROI & Scenario Analysis'!$C$4*Table1[[#This Row],[Monthly Insurance ]] -> 4.50 | AB30: =(Table1[[#This Row],[Number of vehicles]] * Table1[[#This Row],[Avg monthly KM per vehicle]] *0.25)*(1-'General Info'!$E$23) -> 1,250 | AC30: =IF(Table1[[#This Row],[Fuel Type]]="Electric", (Table1[[#This Row],[Monthly KM reduced (25%)]] * (Table1[[#This Row],[Electric cons. (kWh/100km)]] / 100)) * 'General Info'!$E$12, (Table1[[#This Row],[Monthly KM reduced (25%)]] * (Table1[[#This Row],[Fuel cons. (l/100km)]] / 100)) * IF(Table1[[#This Row],[Fuel Type]]="Petrol", 'General Info'!$E$10, 'General Info'!$E$11) ) -> 208.13 | AD30: =Table1[[#This Row],[Avg monthly maintenance]]*0.25*(1-'General Info'!$E$23) -> 15.00 | AE30: =IF(OR(Table1[[#This Row],[Fuel Type]]="Petrol", Table1[[#This Row],[Fuel Type]]="Diesel"), Table1[[#This Row],[Monthly KM reduced (25%)]] * (Table1[[#This Row],[Fuel cons. (l/100km)]] / 100), "") -> 112.50 | AF30: =IF(Table1[[#This Row],[Fuel Type]]="Electric", Table1[[#This Row],[Monthly KM reduced (25%)]] * (Table1[[#This Row],[Electric cons. (kWh/100km)]] / 100), "") ->  | AG30: =IF(Table1[[#This Row],[Fuel Type]]="Petrol", Table1[[#This Row],[Fuel Saved (25%)]] * 'General Info'!$E$14, IF(Table1[[#This Row],[Fuel Type]]="Diesel", Table1[[#This Row],[Fuel Saved (25%)]] * 'General Info'!$E$13, IF(Table1[[#This Row],[Fuel Type]]="Electric", Table1[[#This Row],[Energy Saved (25%)]] * 'General Info'!$E$15, ""))) -> 259.88 | AH30: =IF(D30="Owned",('ROI & Scenario Analysis'!$D$4*Table1[[#This Row],[Number of vehicles]])*Table1[[#This Row],[Monthly depreciation]],"") ->  | AI30: =IF(D30="Rented",('ROI & Scenario Analysis'!$D$4*Table1[[#This Row],[Number of vehicles]])*Table1[[#This Row],[Monthly Lease/Rent ]],"") -> 187.50 | AJ30: ='ROI & Scenario Analysis'!$D$4*Table1[[#This Row],[Monthly Insurance ]] -> 11.25 | AK30: =(Table1[[#This Row],[Number of vehicles]] * Table1[[#This Row],[Avg monthly KM per vehicle]] *0.5)*(1-'General Info'!$E$23) -> 2,500 | AL30: =IF(Table1[[#This Row],[Fuel Type]]="Electric", (Table1[[#This Row],[Monthly KM reduced (50%)]] * (Table1[[#This Row],[Electric cons. (kWh/100km)]] / 100)) * 'General Info'!$E$12, (Table1[[#This Row],[Monthly KM reduced (50%)]] * (Table1[[#This Row],[Fuel cons. (l/100km)]] / 100)) * IF(Table1[[#This Row],[Fuel Type]]="Petrol", 'General Info'!$E$10, 'General Info'!$E$11) ) -> 416.25 | AM30: =Table1[[#This Row],[Avg monthly maintenance]]*0.5*(1-'General Info'!$E$23) -> 30.00 | AN30: =IF(OR(Table1[[#This Row],[Fuel Type]]="Petrol", Table1[[#This Row],[Fuel Type]]="Diesel"), Table1[[#This Row],[Monthly KM reduced (50%)]] * (Table1[[#This Row],[Fuel cons. (l/100km)]] / 100), "") -> 225.00 | AO30: =IF(Table1[[#This Row],[Fuel Type]]="Electric", Table1[[#This Row],[Monthly KM reduced (50%)]] * (Table1[[#This Row],[Electric cons. (kWh/100km)]] / 100), "") ->  | AP30: =IF(Table1[[#This Row],[Fuel Type]]="Petrol", Table1[[#This Row],[Fuel Saved (50%)]] * 'General Info'!$E$14, IF(Table1[[#This Row],[Fuel Type]]="Diesel", Table1[[#This Row],[Fuel Saved (50%)]] * 'General Info'!$E$13, IF(Table1[[#This Row],[Fuel Type]]="Electric", Table1[[#This Row],[Energy Saved (50%)]] * 'General Info'!$E$15, ""))) -> 519.75 | AQ30: =IF(D30="Owned",('ROI & Scenario Analysis'!$E$4*Table1[[#This Row],[Number of vehicles]])*Table1[[#This Row],[Monthly depreciation]],"") ->  | AR30: =IF(D30="Rented",('ROI & Scenario Analysis'!$E$4*Table1[[#This Row],[Number of vehicles]])*Table1[[#This Row],[Monthly Lease/Rent ]],"") -> 375.00 | AS30: ='ROI & Scenario Analysis'!$E$4*Table1[[#This Row],[Monthly Insurance ]] -> 22.50 | AT30: =Table1[[#This Row],[Number of vehicles]] * Table1[[#This Row],[Avg monthly KM per vehicle]] * ('General Info'!$E$22) * (1 - 'General Info'!$E$23) -> 1000 | AU30: =IF(OR(Table1[[#This Row],[Fuel Type]]="Petrol", Table1[[#This Row],[Fuel Type]]="Diesel"), Table1[ [#This Row],[Monthly KM Reduced (User %)] ] * (Table1[[#This Row],[Fuel cons. (l/100km)]] / 100), "") -> 90 | AV30: =IF(Table1[[#This Row],[Fuel Type]]="Electric", Table1[ [#This Row],[Monthly KM Reduced (User %)] ] * (Table1[[#This Row],[Electric cons. (kWh/100km)]] / 100), "") ->  | AW30: =IF(Table1[[#This Row],[Fuel Type]]="Petrol", Table1[[#This Row],[Fuel Saved (User %)]] * 'General Info'!$E$10, IF(Table1[[#This Row],[Fuel Type]]="Diesel", Table1[[#This Row],[Fuel Saved (User %)]] * 'General Info'!$E$11, IF(Table1[[#This Row],[Fuel Type]]="Electric", Table1[[#This Row],[Energy Saved (User %)]] * 'General Info'!$E$12, ""))) -> 166.5 | AX30: =IF(Table1[[#This Row],[Fuel Type]]="Petrol", Table1[[#This Row],[Fuel Saved (User %)]] * 'General Info'!$E$14, IF(Table1[[#This Row],[Fuel Type]]="Diesel", Table1[[#This Row],[Fuel Saved (User %)]] * 'General Info'!$E$13, IF(Table1[[#This Row],[Fuel Type]]="Electric", Table1[[#This Row],[Energy Saved (User %)]] * 'General Info'!$E$15, ""))) -> 207.9 | AY30: =Table1[[#This Row],[Avg monthly maintenance]]*'General Info'!$E$22*(1-'General Info'!$E$23) -> 12.00 | AZ30: =IF(D30="Owned",('ROI & Scenario Analysis'!$B$4*Table1[[#This Row],[Number of vehicles]])*Table1[[#This Row],[Monthly depreciation]],"") ->  | BA30: =IF(D30="Rented",('ROI & Scenario Analysis'!$B$4*Table1[[#This Row],[Number of vehicles]])*Table1[[#This Row],[Monthly Lease/Rent ]],"") -> 150 | BB30: ='ROI & Scenario Analysis'!$B$4*Table1[[#This Row],[Monthly Insurance ]] -> 9
B31: 4x4/SUV | C31: Diesel | D31: Owned | E31: 8 | F31: 1800 | G31: 11 | J31: 120 | K31: 180 | L31: 40000 | M31: 2020 | N31: 8 | O31: 8000 | P31: 333.33 | Q31: =IF(Table1[[#This Row],[Fuel Type]]="Diesel", (Table1[[#This Row],[Avg monthly KM per vehicle]]/100)*Table1[[#This Row],[Fuel cons. (l/100km)]]*('General Info'!$E$11), IF(Table1[[#This Row],[Fuel Type]]="Petrol", (Table1[[#This Row],[Avg monthly KM per vehicle]]/100)*Table1[[#This Row],[Fuel cons. (l/100km)]]*('General Info'!$E$10), IF(Table1[[#This Row],[Fuel Type]]="Electric", (Table1[[#This Row],[Avg monthly KM per vehicle]]/100)*Table1[[#This Row],[Electric cons. (kWh/100km)]]*('General Info'!$E$12), ""))) -> 297.00 | R31: =IF(Table1[[#This Row],[Ownership]]="Owned",Table1[[#This Row],[Monthly Insurance ]]+Table1[[#This Row],[Avg monthly maintenance]]+Table1[[#This Row],[Monthly depreciation]]+Table1[[#This Row],[Monthly fuel/energy cost per vehicle]],Table1[[#This Row],[Monthly Insurance ]]+Table1[[#This Row],[Avg monthly maintenance]]+Table1[[#This Row],[Monthly Lease/Rent ]]+Table1[[#This Row],[Monthly fuel/energy cost per vehicle]]) -> 930.33 | S31: =(Table1[[#This Row],[Number of vehicles]] * Table1[[#This Row],[Avg monthly KM per vehicle]] *0.1)*(1-'General Info'!$E$23) -> 720 | T31: =IF(Table1[[#This Row],[Fuel Type]]="Electric", (Table1[[#This Row],[Monthly KM reduced (10%)]] * (Table1[[#This Row],[Electric cons. (kWh/100km)]] / 100)) * 'General Info'!$E$12, (Table1[[#This Row],[Monthly KM reduced (10%)]] * (Table1[[#This Row],[Fuel cons. (l/100km)]] / 100)) * IF(Table1[[#This Row],[Fuel Type]]="Petrol", 'General Info'!$E$10, 'General Info'!$E$11) ) -> 118.80 | U31: =Table1[[#This Row],[Avg monthly maintenance]]*0.1*(1-'General Info'!$E$23) -> 9.00 | V31: =IF(OR(Table1[[#This Row],[Fuel Type]]="Petrol", Table1[[#This Row],[Fuel Type]]="Diesel"), Table1[[#This Row],[Monthly KM reduced (10%)]] * (Table1[[#This Row],[Fuel cons. (l/100km)]] / 100), "") -> 79.20 | W31: =IF(Table1[[#This Row],[Fuel Type]]="Electric", Table1[[#This Row],[Monthly KM reduced (10%)]] * (Table1[[#This Row],[Electric cons. (kWh/100km)]] / 100), "") ->  | X31: =IF(Table1[[#This Row],[Fuel Type]]="Petrol", Table1[[#This Row],[Fuel saved (10%)]] * 'General Info'!$E$14, IF(Table1[[#This Row],[Fuel Type]]="Diesel", Table1[[#This Row],[Fuel saved (10%)]] * 'General Info'!$E$13, IF(Table1[[#This Row],[Fuel Type]]="Electric", Table1[[#This Row],[Energy saved (10%)]] * 'General Info'!$E$15, ""))) -> 212.26 | Y31: =IF(D31="Owned",('ROI & Scenario Analysis'!$C$4*Table1[[#This Row],[Number of vehicles]])*Table1[[#This Row],[Monthly depreciation]],"") -> 160.00 | Z31: =IF(D31="Rented",('ROI & Scenario Analysis'!$C$4*Table1[[#This Row],[Number of vehicles]])*Table1[[#This Row],[Monthly Lease/Rent ]],"") ->  | AA31: ='ROI & Scenario Analysis'!$C$4*Table1[[#This Row],[Monthly Insurance ]] -> 7.20 | AB31: =(Table1[[#This Row],[Number of vehicles]] * Table1[[#This Row],[Avg monthly KM per vehicle]] *0.25)*(1-'General Info'!$E$23) -> 1,800 | AC31: =IF(Table1[[#This Row],[Fuel Type]]="Electric", (Table1[[#This Row],[Monthly KM reduced (25%)]] * (Table1[[#This Row],[Electric cons. (kWh/100km)]] / 100)) * 'General Info'!$E$12, (Table1[[#This Row],[Monthly KM reduced (25%)]] * (Table1[[#This Row],[Fuel cons. (l/100km)]] / 100)) * IF(Table1[[#This Row],[Fuel Type]]="Petrol", 'General Info'!$E$10, 'General Info'!$E$11) ) -> 297.00 | AD31: =Table1[[#This Row],[Avg monthly maintenance]]*0.25*(1-'General Info'!$E$23) -> 22.50 | AE31: =IF(OR(Table1[[#This Row],[Fuel Type]]="Petrol", Table1[[#This Row],[Fuel Type]]="Diesel"), Table1[[#This Row],[Monthly KM reduced (25%)]] * (Table1[[#This Row],[Fuel cons. (l/100km)]] / 100), "") -> 198.00 | AF31: =IF(Table1[[#This Row],[Fuel Type]]="Electric", Table1[[#This Row],[Monthly KM reduced (25%)]] * (Table1[[#This Row],[Electric cons. (kWh/100km)]] / 100), "") ->  | AG31: =IF(Table1[[#This Row],[Fuel Type]]="Petrol", Table1[[#This Row],[Fuel Saved (25%)]] * 'General Info'!$E$14, IF(Table1[[#This Row],[Fuel Type]]="Diesel", Table1[[#This Row],[Fuel Saved (25%)]] * 'General Info'!$E$13, IF(Table1[[#This Row],[Fuel Type]]="Electric", Table1[[#This Row],[Energy Saved (25%)]] * 'General Info'!$E$15, ""))) -> 530.64 | AH31: =IF(D31="Owned",('ROI & Scenario Analysis'!$D$4*Table1[[#This Row],[Number of vehicles]])*Table1[[#This Row],[Monthly depreciation]],"") -> 400.00 | AI31: =IF(D31="Rented",('ROI & Scenario Analysis'!$D$4*Table1[[#This Row],[Number of vehicles]])*Table1[[#This Row],[Monthly Lease/Rent ]],"") ->  | AJ31: ='ROI & Scenario Analysis'!$D$4*Table1[[#This Row],[Monthly Insurance ]] -> 18.00 | AK31: =(Table1[[#This Row],[Number of vehicles]] * Table1[[#This Row],[Avg monthly KM per vehicle]] *0.5)*(1-'General Info'!$E$23) -> 3,600 | AL31: =IF(Table1[[#This Row],[Fuel Type]]="Electric", (Table1[[#This Row],[Monthly KM reduced (50%)]] * (Table1[[#This Row],[Electric cons. (kWh/100km)]] / 100)) * 'General Info'!$E$12, (Table1[[#This Row],[Monthly KM reduced (50%)]] * (Table1[[#This Row],[Fuel cons. (l/100km)]] / 100)) * IF(Table1[[#This Row],[Fuel Type]]="Petrol", 'General Info'!$E$10, 'General Info'!$E$11) ) -> 594.00 | AM31: =Table1[[#This Row],[Avg monthly maintenance]]*0.5*(1-'General Info'!$E$23) -> 45.00 | AN31: =IF(OR(Table1[[#This Row],[Fuel Type]]="Petrol", Table1[[#This Row],[Fuel Type]]="Diesel"), Table1[[#This Row],[Monthly KM reduced (50%)]] * (Table1[[#This Row],[Fuel cons. (l/100km)]] / 100), "") -> 396.00 | AO31: =IF(Table1[[#This Row],[Fuel Type]]="Electric", Table1[[#This Row],[Monthly KM reduced (50%)]] * (Table1[[#This Row],[Electric cons. (kWh/100km)]] / 100), "") ->  | AP31: =IF(Table1[[#This Row],[Fuel Type]]="Petrol", Table1[[#This Row],[Fuel Saved (50%)]] * 'General Info'!$E$14, IF(Table1[[#This Row],[Fuel Type]]="Diesel", Table1[[#This Row],[Fuel Saved (50%)]] * 'General Info'!$E$13, IF(Table1[[#This Row],[Fuel Type]]="Electric", Table1[[#This Row],[Energy Saved (50%)]] * 'General Info'!$E$15, ""))) -> 1,061.28 | AQ31: =IF(D31="Owned",('ROI & Scenario Analysis'!$E$4*Table1[[#This Row],[Number of vehicles]])*Table1[[#This Row],[Monthly depreciation]],"") -> 800.00 | AR31: =IF(D31="Rented",('ROI & Scenario Analysis'!$E$4*Table1[[#This Row],[Number of vehicles]])*Table1[[#This Row],[Monthly Lease/Rent ]],"") ->  | AS31: ='ROI & Scenario Analysis'!$E$4*Table1[[#This Row],[Monthly Insurance ]] -> 36.00 | AT31: =Table1[[#This Row],[Number of vehicles]] * Table1[[#This Row],[Avg monthly KM per vehicle]] * ('General Info'!$E$22) * (1 - 'General Info'!$E$23) -> 1440 | AU31: =IF(OR(Table1[[#This Row],[Fuel Type]]="Petrol", Table1[[#This Row],[Fuel Type]]="Diesel"), Table1[ [#This Row],[Monthly KM Reduced (User %)] ] * (Table1[[#This Row],[Fuel cons. (l/100km)]] / 100), "") -> 158.4 | AV31: =IF(Table1[[#This Row],[Fuel Type]]="Electric", Table1[ [#This Row],[Monthly KM Reduced (User %)] ] * (Table1[[#This Row],[Electric cons. (kWh/100km)]] / 100), "") ->  | AW31: =IF(Table1[[#This Row],[Fuel Type]]="Petrol", Table1[[#This Row],[Fuel Saved (User %)]] * 'General Info'!$E$10, IF(Table1[[#This Row],[Fuel Type]]="Diesel", Table1[[#This Row],[Fuel Saved (User %)]] * 'General Info'!$E$11, IF(Table1[[#This Row],[Fuel Type]]="Electric", Table1[[#This Row],[Energy Saved (User %)]] * 'General Info'!$E$12, ""))) -> 237.6 | AX31: =IF(Table1[[#This Row],[Fuel Type]]="Petrol", Table1[[#This Row],[Fuel Saved (User %)]] * 'General Info'!$E$14, IF(Table1[[#This Row],[Fuel Type]]="Diesel", Table1[[#This Row],[Fuel Saved (User %)]] * 'General Info'!$E$13, IF(Table1[[#This Row],[Fuel Type]]="Electric", Table1[[#This Row],[Energy Saved (User %)]] * 'General Info'!$E$15, ""))) -> 424.512 | AY31: =Table1[[#This Row],[Avg monthly maintenance]]*'General Info'!$E$22*(1-'General Info'!$E$23) -> 18.00 | AZ31: =IF(D31="Owned",('ROI & Scenario Analysis'!$B$4*Table1[[#This Row],[Number of vehicles]])*Table1[[#This Row],[Monthly depreciation]],"") -> 320 | BA31: =IF(D31="Rented",('ROI & Scenario Analysis'!$B$4*Table1[[#This Row],[Number of vehicles]])*Table1[[#This Row],[Monthly Lease/Rent ]],"") ->  | BB31: ='ROI & Scenario Analysis'!$B$4*Table1[[#This Row],[Monthly Insurance ]] -> 14.4
B32: Minibus | C32: Diesel | D32: Rented | E32: 3 | F32: 1400 | G32: 14 | I32: 350 | J32: 90 | K32: 200 | Q32: =IF(Table1[[#This Row],[Fuel Type]]="Diesel", (Table1[[#This Row],[Avg monthly KM per vehicle]]/100)*Table1[[#This Row],[Fuel cons. (l/100km)]]*('General Info'!$E$11), IF(Table1[[#This Row],[Fuel Type]]="Petrol", (Table1[[#This Row],[Avg monthly KM per vehicle]]/100)*Table1[[#This Row],[Fuel cons. (l/100km)]]*('General Info'!$E$10), IF(Table1[[#This Row],[Fuel Type]]="Electric", (Table1[[#This Row],[Avg monthly KM per vehicle]]/100)*Table1[[#This Row],[Electric cons. (kWh/100km)]]*('General Info'!$E$12), ""))) -> 294.00 | R32: =IF(Table1[[#This Row],[Ownership]]="Owned",Table1[[#This Row],[Monthly Insurance ]]+Table1[[#This Row],[Avg monthly maintenance]]+Table1[[#This Row],[Monthly depreciation]]+Table1[[#This Row],[Monthly fuel/energy cost per vehicle]],Table1[[#This Row],[Monthly Insurance ]]+Table1[[#This Row],[Avg monthly maintenance]]+Table1[[#This Row],[Monthly Lease/Rent ]]+Table1[[#This Row],[Monthly fuel/energy cost per vehicle]]) -> 934.00 | S32: =(Table1[[#This Row],[Number of vehicles]] * Table1[[#This Row],[Avg monthly KM per vehicle]] *0.1)*(1-'General Info'!$E$23) -> 210 | T32: =IF(Table1[[#This Row],[Fuel Type]]="Electric", (Table1[[#This Row],[Monthly KM reduced (10%)]] * (Table1[[#This Row],[Electric cons. (kWh/100km)]] / 100)) * 'General Info'!$E$12, (Table1[[#This Row],[Monthly KM reduced (10%)]] * (Table1[[#This Row],[Fuel cons. (l/100km)]] / 100)) * IF(Table1[[#This Row],[Fuel Type]]="Petrol", 'General Info'!$E$10, 'General Info'!$E$11) ) -> 44.10 | U32: =Table1[[#This Row],[Avg monthly maintenance]]*0.1*(1-'General Info'!$E$23) -> 10.00 | V32: =IF(OR(Table1[[#This Row],[Fuel Type]]="Petrol", Table1[[#This Row],[Fuel Type]]="Diesel"), Table1[[#This Row],[Monthly KM reduced (10%)]] * (Table1[[#This Row],[Fuel cons. (l/100km)]] / 100), "") -> 29.40 | W32: =IF(Table1[[#This Row],[Fuel Type]]="Electric", Table1[[#This Row],[Monthly KM reduced (10%)]] * (Table1[[#This Row],[Electric cons. (kWh/100km)]] / 100), "") ->  | X32: =IF(Table1[[#This Row],[Fuel Type]]="Petrol", Table1[[#This Row],[Fuel saved (10%)]] * 'General Info'!$E$14, IF(Table1[[#This Row],[Fuel Type]]="Diesel", Table1[[#This Row],[Fuel saved (10%)]] * 'General Info'!$E$13, IF(Table1[[#This Row],[Fuel Type]]="Electric", Table1[[#This Row],[Energy saved (10%)]] * 'General Info'!$E$15, ""))) -> 78.79 | Y32: =IF(D32="Owned",('ROI & Scenario Analysis'!$C$4*Table1[[#This Row],[Number of vehicles]])*Table1[[#This Row],[Monthly depreciation]],"") ->  | Z32: =IF(D32="Rented",('ROI & Scenario Analysis'!$C$4*Table1[[#This Row],[Number of vehicles]])*Table1[[#This Row],[Monthly Lease/Rent ]],"") -> 63.00 | AA32: ='ROI & Scenario Analysis'!$C$4*Table1[[#This Row],[Monthly Insurance ]] -> 5.40 | AB32: =(Table1[[#This Row],[Number of vehicles]] * Table1[[#This Row],[Avg monthly KM per vehicle]] *0.25)*(1-'General Info'!$E$23) -> 525 | AC32: =IF(Table1[[#This Row],[Fuel Type]]="Electric", (Table1[[#This Row],[Monthly KM reduced (25%)]] * (Table1[[#This Row],[Electric cons. (kWh/100km)]] / 100)) * 'General Info'!$E$12, (Table1[[#This Row],[Monthly KM reduced (25%)]] * (Table1[[#This Row],[Fuel cons. (l/100km)]] / 100)) * IF(Table1[[#This Row],[Fuel Type]]="Petrol", 'General Info'!$E$10, 'General Info'!$E$11) ) -> 110.25 | AD32: =Table1[[#This Row],[Avg monthly maintenance]]*0.25*(1-'General Info'!$E$23) -> 25.00 | AE32: =IF(OR(Table1[[#This Row],[Fuel Type]]="Petrol", Table1[[#This Row],[Fuel Type]]="Diesel"), Table1[[#This Row],[Monthly KM reduced (25%)]] * (Table1[[#This Row],[Fuel cons. (l/100km)]] / 100), "") -> 73.50 | AF32: =IF(Table1[[#This Row],[Fuel Type]]="Electric", Table1[[#This Row],[Monthly KM reduced (25%)]] * (Table1[[#This Row],[Electric cons. (kWh/100km)]] / 100), "") ->  | AG32: =IF(Table1[[#This Row],[Fuel Type]]="Petrol", Table1[[#This Row],[Fuel Saved (25%)]] * 'General Info'!$E$14, IF(Table1[[#This Row],[Fuel Type]]="Diesel", Table1[[#This Row],[Fuel Saved (25%)]] * 'General Info'!$E$13, IF(Table1[[#This Row],[Fuel Type]]="Electric", Table1[[#This Row],[Energy Saved (25%)]] * 'General Info'!$E$15, ""))) -> 196.98 | AH32: =IF(D32="Owned",('ROI & Scenario Analysis'!$D$4*Table1[[#This Row],[Number of vehicles]])*Table1[[#This Row],[Monthly depreciation]],"") ->  | AI32: =IF(D32="Rented",('ROI & Scenario Analysis'!$D$4*Table1[[#This Row],[Number of vehicles]])*Table1[[#This Row],[Monthly Lease/Rent ]],"") -> 157.50 | AJ32: ='ROI & Scenario Analysis'!$D$4*Table1[[#This Row],[Monthly Insurance ]] -> 13.50 | AK32: =(Table1[[#This Row],[Number of vehicles]] * Table1[[#This Row],[Avg monthly KM per vehicle]] *0.5)*(1-'General Info'!$E$23) -> 1,050 | AL32: =IF(Table1[[#This Row],[Fuel Type]]="Electric", (Table1[[#This Row],[Monthly KM reduced (50%)]] * (Table1[[#This Row],[Electric cons. (kWh/100km)]] / 100)) * 'General Info'!$E$12, (Table1[[#This Row],[Monthly KM reduced (50%)]] * (Table1[[#This Row],[Fuel cons. (l/100km)]] / 100)) * IF(Table1[[#This Row],[Fuel Type]]="Petrol", 'General Info'!$E$10, 'General Info'!$E$11) ) -> 220.50 | AM32: =Table1[[#This Row],[Avg monthly maintenance]]*0.5*(1-'General Info'!$E$23) -> 50.00 | AN32: =IF(OR(Table1[[#This Row],[Fuel Type]]="Petrol", Table1[[#This Row],[Fuel Type]]="Diesel"), Table1[[#This Row],[Monthly KM reduced (50%)]] * (Table1[[#This Row],[Fuel cons. (l/100km)]] / 100), "") -> 147.00 | AO32: =IF(Table1[[#This Row],[Fuel Type]]="Electric", Table1[[#This Row],[Monthly KM reduced (50%)]] * (Table1[[#This Row],[Electric cons. (kWh/100km)]] / 100), "") ->  | AP32: =IF(Table1[[#This Row],[Fuel Type]]="Petrol", Table1[[#This Row],[Fuel Saved (50%)]] * 'General Info'!$E$14, IF(Table1[[#This Row],[Fuel Type]]="Diesel", Table1[[#This Row],[Fuel Saved (50%)]] * 'General Info'!$E$13, IF(Table1[[#This Row],[Fuel Type]]="Electric", Table1[[#This Row],[Energy Saved (50%)]] * 'General Info'!$E$15, ""))) -> 393.96 | AQ32: =IF(D32="Owned",('ROI & Scenario Analysis'!$E$4*Table1[[#This Row],[Number of vehicles]])*Table1[[#This Row],[Monthly depreciation]],"") ->  | AR32: =IF(D32="Rented",('ROI & Scenario Analysis'!$E$4*Table1[[#This Row],[Number of vehicles]])*Table1[[#This Row],[Monthly Lease/Rent ]],"") -> 315.00 | AS32: ='ROI & Scenario Analysis'!$E$4*Table1[[#This Row],[Monthly Insurance ]] -> 27.00 | AT32: =Table1[[#This Row],[Number of vehicles]] * Table1[[#This Row],[Avg monthly KM per vehicle]] * ('General Info'!$E$22) * (1 - 'General Info'!$E$23) -> 420 | AU32: =IF(OR(Table1[[#This Row],[Fuel Type]]="Petrol", Table1[[#This Row],[Fuel Type]]="Diesel"), Table1[ [#This Row],[Monthly KM Reduced (User %)] ] * (Table1[[#This Row],[Fuel cons. (l/100km)]] / 100), "") -> 58.8 | AV32: =IF(Table1[[#This Row],[Fuel Type]]="Electric", Table1[ [#This Row],[Monthly KM Reduced (User %)] ] * (Table1[[#This Row],[Electric cons. (kWh/100km)]] / 100), "") ->  | AW32: =IF(Table1[[#This Row],[Fuel Type]]="Petrol", Table1[[#This Row],[Fuel Saved (User %)]] * 'General Info'!$E$10, IF(Table1[[#This Row],[Fuel Type]]="Diesel", Table1[[#This Row],[Fuel Saved (User %)]] * 'General Info'!$E$11, IF(Table1[[#This Row],[Fuel Type]]="Electric", Table1[[#This Row],[Energy Saved (User %)]] * 'General Info'!$E$12, ""))) -> 88.2 | AX32: =IF(Table1[[#This Row],[Fuel Type]]="Petrol", Table1[[#This Row],[Fuel Saved (User %)]] * 'General Info'!$E$14, IF(Table1[[#This Row],[Fuel Type]]="Diesel", Table1[[#This Row],[Fuel Saved (User %)]] * 'General Info'!$E$13, IF(Table1[[#This Row],[Fuel Type]]="Electric", Table1[[#This Row],[Energy Saved (User %)]] * 'General Info'!$E$15, ""))) -> 157.584 | AY32: =Table1[[#This Row],[Avg monthly maintenance]]*'General Info'!$E$22*(1-'General Info'!$E$23) -> 20.00 | AZ32: =IF(D32="Owned",('ROI & Scenario Analysis'!$B$4*Table1[[#This Row],[Number of vehicles]])*Table1[[#This Row],[Monthly depreciation]],"") ->  | BA32: =IF(D32="Rented",('ROI & Scenario Analysis'!$B$4*Table1[[#This Row],[Number of vehicles]])*Table1[[#This Row],[Monthly Lease/Rent ]],"") -> 126 | BB32: ='ROI & Scenario Analysis'!$B$4*Table1[[#This Row],[Monthly Insurance ]] -> 10.8
B33: Light vehicle (Sedan/City vehicle) | C33: Petrol | D33: Owned | E33: 7 | F33: 1200 | G33: 7 | J33: 70 | K33: 110 | L33: 18000 | M33: 2021 | N33: 7 | O33: 3000 | P33: 178.57 | Q33: =IF(Table1[[#This Row],[Fuel Type]]="Diesel", (Table1[[#This Row],[Avg monthly KM per vehicle]]/100)*Table1[[#This Row],[Fuel cons. (l/100km)]]*('General Info'!$E$11), IF(Table1[[#This Row],[Fuel Type]]="Petrol", (Table1[[#This Row],[Avg monthly KM per vehicle]]/100)*Table1[[#This Row],[Fuel cons. (l/100km)]]*('General Info'!$E$10), IF(Table1[[#This Row],[Fuel Type]]="Electric", (Table1[[#This Row],[Avg monthly KM per vehicle]]/100)*Table1[[#This Row],[Electric cons. (kWh/100km)]]*('General Info'!$E$12), ""))) -> 155.40 | R33: =IF(Table1[[#This Row],[Ownership]]="Owned",Table1[[#This Row],[Monthly Insurance ]]+Table1[[#This Row],[Avg monthly maintenance]]+Table1[[#This Row],[Monthly depreciation]]+Table1[[#This Row],[Monthly fuel/energy cost per vehicle]],Table1[[#This Row],[Monthly Insurance ]]+Table1[[#This Row],[Avg monthly maintenance]]+Table1[[#This Row],[Monthly Lease/Rent ]]+Table1[[#This Row],[Monthly fuel/energy cost per vehicle]]) -> 513.97 | S33: =(Table1[[#This Row],[Number of vehicles]] * Table1[[#This Row],[Avg monthly KM per vehicle]] *0.1)*(1-'General Info'!$E$23) -> 420 | T33: =IF(Table1[[#This Row],[Fuel Type]]="Electric", (Table1[[#This Row],[Monthly KM reduced (10%)]] * (Table1[[#This Row],[Electric cons. (kWh/100km)]] / 100)) * 'General Info'!$E$12, (Table1[[#This Row],[Monthly KM reduced (10%)]] * (Table1[[#This Row],[Fuel cons. (l/100km)]] / 100)) * IF(Table1[[#This Row],[Fuel Type]]="Petrol", 'General Info'!$E$10, 'General Info'!$E$11) ) -> 54.39 | U33: =Table1[[#This Row],[Avg monthly maintenance]]*0.1*(1-'General Info'!$E$23) -> 5.50 | V33: =IF(OR(Table1[[#This Row],[Fuel Type]]="Petrol", Table1[[#This Row],[Fuel Type]]="Diesel"), Table1[[#This Row],[Monthly KM reduced (10%)]] * (Table1[[#This Row],[Fuel cons. (l/100km)]] / 100), "") -> 29.40 | W33: =IF(Table1[[#This Row],[Fuel Type]]="Electric", Table1[[#This Row],[Monthly KM reduced (10%)]] * (Table1[[#This Row],[Electric cons. (kWh/100km)]] / 100), "") ->  | X33: =IF(Table1[[#This Row],[Fuel Type]]="Petrol", Table1[[#This Row],[Fuel saved (10%)]] * 'General Info'!$E$14, IF(Table1[[#This Row],[Fuel Type]]="Diesel", Table1[[#This Row],[Fuel saved (10%)]] * 'General Info'!$E$13, IF(Table1[[#This Row],[Fuel Type]]="Electric", Table1[[#This Row],[Energy saved (10%)]] * 'General Info'!$E$15, ""))) -> 67.91 | Y33: =IF(D33="Owned",('ROI & Scenario Analysis'!$C$4*Table1[[#This Row],[Number of vehicles]])*Table1[[#This Row],[Monthly depreciation]],"") -> 75.00 | Z33: =IF(D33="Rented",('ROI & Scenario Analysis'!$C$4*Table1[[#This Row],[Number of vehicles]])*Table1[[#This Row],[Monthly Lease/Rent ]],"") ->  | AA33: ='ROI & Scenario Analysis'!$C$4*Table1[[#This Row],[Monthly Insurance ]] -> 4.20 | AB33: =(Table1[[#This Row],[Number of vehicles]] * Table1[[#This Row],[Avg monthly KM per vehicle]] *0.25)*(1-'General Info'!$E$23) -> 1,050 | AC33: =IF(Table1[[#This Row],[Fuel Type]]="Electric", (Table1[[#This Row],[Monthly KM reduced (25%)]] * (Table1[[#This Row],[Electric cons. (kWh/100km)]] / 100)) * 'General Info'!$E$12, (Table1[[#This Row],[Monthly KM reduced (25%)]] * (Table1[[#This Row],[Fuel cons. (l/100km)]] / 100)) * IF(Table1[[#This Row],[Fuel Type]]="Petrol", 'General Info'!$E$10, 'General Info'!$E$11) ) -> 135.98 | AD33: =Table1[[#This Row],[Avg monthly maintenance]]*0.25*(1-'General Info'!$E$23) -> 13.75 | AE33: =IF(OR(Table1[[#This Row],[Fuel Type]]="Petrol", Table1[[#This Row],[Fuel Type]]="Diesel"), Table1[[#This Row],[Monthly KM reduced (25%)]] * (Table1[[#This Row],[Fuel cons. (l/100km)]] / 100), "") -> 73.50 | AF33: =IF(Table1[[#This Row],[Fuel Type]]="Electric", Table1[[#This Row],[Monthly KM reduced (25%)]] * (Table1[[#This Row],[Electric cons. (kWh/100km)]] / 100), "") ->  | AG33: =IF(Table1[[#This Row],[Fuel Type]]="Petrol", Table1[[#This Row],[Fuel Saved (25%)]] * 'General Info'!$E$14, IF(Table1[[#This Row],[Fuel Type]]="Diesel", Table1[[#This Row],[Fuel Saved (25%)]] * 'General Info'!$E$13, IF(Table1[[#This Row],[Fuel Type]]="Electric", Table1[[#This Row],[Energy Saved (25%)]] * 'General Info'!$E$15, ""))) -> 169.79 | AH33: =IF(D33="Owned",('ROI & Scenario Analysis'!$D$4*Table1[[#This Row],[Number of vehicles]])*Table1[[#This Row],[Monthly depreciation]],"") -> 187.50 | AI33: =IF(D33="Rented",('ROI & Scenario Analysis'!$D$4*Table1[[#This Row],[Number of vehicles]])*Table1[[#This Row],[Monthly Lease/Rent ]],"") ->  | AJ33: ='ROI & Scenario Analysis'!$D$4*Table1[[#This Row],[Monthly Insurance ]] -> 10.50 | AK33: =(Table1[[#This Row],[Number of vehicles]] * Table1[[#This Row],[Avg monthly KM per vehicle]] *0.5)*(1-'General Info'!$E$23) -> 2,100 | AL33: =IF(Table1[[#This Row],[Fuel Type]]="Electric", (Table1[[#This Row],[Monthly KM reduced (50%)]] * (Table1[[#This Row],[Electric cons. (kWh/100km)]] / 100)) * 'General Info'!$E$12, (Table1[[#This Row],[Monthly KM reduced (50%)]] * (Table1[[#This Row],[Fuel cons. (l/100km)]] / 100)) * IF(Table1[[#This Row],[Fuel Type]]="Petrol", 'General Info'!$E$10, 'General Info'!$E$11) ) -> 271.95 | AM33: =Table1[[#This Row],[Avg monthly maintenance]]*0.5*(1-'General Info'!$E$23) -> 27.50 | AN33: =IF(OR(Table1[[#This Row],[Fuel Type]]="Petrol", Table1[[#This Row],[Fuel Type]]="Diesel"), Table1[[#This Row],[Monthly KM reduced (50%)]] * (Table1[[#This Row],[Fuel cons. (l/100km)]] / 100), "") -> 147.00 | AO33: =IF(Table1[[#This Row],[Fuel Type]]="Electric", Table1[[#This Row],[Monthly KM reduced (50%)]] * (Table1[[#This Row],[Electric cons. (kWh/100km)]] / 100), "") ->  | AP33: =IF(Table1[[#This Row],[Fuel Type]]="Petrol", Table1[[#This Row],[Fuel Saved (50%)]] * 'General Info'!$E$14, IF(Table1[[#This Row],[Fuel Type]]="Diesel", Table1[[#This Row],[Fuel Saved (50%)]] * 'General Info'!$E$13, IF(Table1[[#This Row],[Fuel Type]]="Electric", Table1[[#This Row],[Energy Saved (50%)]] * 'General Info'!$E$15, ""))) -> 339.57 | AQ33: =IF(D33="Owned",('ROI & Scenario Analysis'!$E$4*Table1[[#This Row],[Number of vehicles]])*Table1[[#This Row],[Monthly depreciation]],"") -> 375.00 | AR33: =IF(D33="Rented",('ROI & Scenario Analysis'!$E$4*Table1[[#This Row],[Number of vehicles]])*Table1[[#This Row],[Monthly Lease/Rent ]],"") ->  | AS33: ='ROI & Scenario Analysis'!$E$4*Table1[[#This Row],[Monthly Insurance ]] -> 21.00 | AT33: =Table1[[#This Row],[Number of vehicles]] * Table1[[#This Row],[Avg monthly KM per vehicle]] * ('General Info'!$E$22) * (1 - 'General Info'!$E$23) -> 840 | AU33: =IF(OR(Table1[[#This Row],[Fuel Type]]="Petrol", Table1[[#This Row],[Fuel Type]]="Diesel"), Table1[ [#This Row],[Monthly KM Reduced (User %)] ] * (Table1[[#This Row],[Fuel cons. (l/100km)]] / 100), "") -> 58.8 | AV33: =IF(Table1[[#This Row],[Fuel Type]]="Electric", Table1[ [#This Row],[Monthly KM Reduced (User %)] ] * (Table1[[#This Row],[Electric cons. (kWh/100km)]] / 100), "") ->  | AW33: =IF(Table1[[#This Row],[Fuel Type]]="Petrol", Table1[[#This Row],[Fuel Saved (User %)]] * 'General Info'!$E$10, IF(Table1[[#This Row],[Fuel Type]]="Diesel", Table1[[#This Row],[Fuel Saved (User %)]] * 'General Info'!$E$11, IF(Table1[[#This Row],[Fuel Type]]="Electric", Table1[[#This Row],[Energy Saved (User %)]] * 'General Info'!$E$12, ""))) -> 108.78 | AX33: =IF(Table1[[#This Row],[Fuel Type]]="Petrol", Table1[[#This Row],[Fuel Saved (User %)]] * 'General Info'!$E$14, IF(Table1[[#This Row],[Fuel Type]]="Diesel", Table1[[#This Row],[Fuel Saved (User %)]] * 'General Info'!$E$13, IF(Table1[[#This Row],[Fuel Type]]="Electric", Table1[[#This Row],[Energy Saved (User %)]] * 'General Info'!$E$15, ""))) -> 135.828 | AY33: =Table1[[#This Row],[Avg monthly maintenance]]*'General Info'!$E$22*(1-'General Info'!$E$23) -> 11.00 | AZ33: =IF(D33="Owned",('ROI & Scenario Analysis'!$B$4*Table1[[#This Row],[Number of vehicles]])*Table1[[#This Row],[Monthly depreciation]],"") -> 150 | BA33: =IF(D33="Rented",('ROI & Scenario Analysis'!$B$4*Table1[[#This Row],[Number of vehicles]])*Table1[[#This Row],[Monthly Lease/Rent ]],"") ->  | BB33: ='ROI & Scenario Analysis'!$B$4*Table1[[#This Row],[Monthly Insurance ]] -> 8.4
B34: Minibus | C34: Diesel | D34: Owned | E34: 5 | F34: 1000 | G34: 10 | J34: 95 | K34: 150 | L34: 25000 | M34: 2019 | N34: 6 | O34: 4000 | P34: 291.67 | Q34: =IF(Table1[[#This Row],[Fuel Type]]="Diesel", (Table1[[#This Row],[Avg monthly KM per vehicle]]/100)*Table1[[#This Row],[Fuel cons. (l/100km)]]*('General Info'!$E$11), IF(Table1[[#This Row],[Fuel Type]]="Petrol", (Table1[[#This Row],[Avg monthly KM per vehicle]]/100)*Table1[[#This Row],[Fuel cons. (l/100km)]]*('General Info'!$E$10), IF(Table1[[#This Row],[Fuel Type]]="Electric", (Table1[[#This Row],[Avg monthly KM per vehicle]]/100)*Table1[[#This Row],[Electric cons. (kWh/100km)]]*('General Info'!$E$12), ""))) -> 150.00 | R34: =IF(Table1[[#This Row],[Ownership]]="Owned",Table1[[#This Row],[Monthly Insurance ]]+Table1[[#This Row],[Avg monthly maintenance]]+Table1[[#This Row],[Monthly depreciation]]+Table1[[#This Row],[Monthly fuel/energy cost per vehicle]],Table1[[#This Row],[Monthly Insurance ]]+Table1[[#This Row],[Avg monthly maintenance]]+Table1[[#This Row],[Monthly Lease/Rent ]]+Table1[[#This Row],[Monthly fuel/energy cost per vehicle]]) -> 686.67 | S34: =(Table1[[#This Row],[Number of vehicles]] * Table1[[#This Row],[Avg monthly KM per vehicle]] *0.1)*(1-'General Info'!$E$23) -> 250 | T34: =IF(Table1[[#This Row],[Fuel Type]]="Electric", (Table1[[#This Row],[Monthly KM reduced (10%)]] * (Table1[[#This Row],[Electric cons. (kWh/100km)]] / 100)) * 'General Info'!$E$12, (Table1[[#This Row],[Monthly KM reduced (10%)]] * (Table1[[#This Row],[Fuel cons. (l/100km)]] / 100)) * IF(Table1[[#This Row],[Fuel Type]]="Petrol", 'General Info'!$E$10, 'General Info'!$E$11) ) -> 37.50 | U34: =Table1[[#This Row],[Avg monthly maintenance]]*0.1*(1-'General Info'!$E$23) -> 7.50 | V34: =IF(OR(Table1[[#This Row],[Fuel Type]]="Petrol", Table1[[#This Row],[Fuel Type]]="Diesel"), Table1[[#This Row],[Monthly KM reduced (10%)]] * (Table1[[#This Row],[Fuel cons. (l/100km)]] / 100), "") -> 25.00 | W34: =IF(Table1[[#This Row],[Fuel Type]]="Electric", Table1[[#This Row],[Monthly KM reduced (10%)]] * (Table1[[#This Row],[Electric cons. (kWh/100km)]] / 100), "") ->  | X34: =IF(Table1[[#This Row],[Fuel Type]]="Petrol", Table1[[#This Row],[Fuel saved (10%)]] * 'General Info'!$E$14, IF(Table1[[#This Row],[Fuel Type]]="Diesel", Table1[[#This Row],[Fuel saved (10%)]] * 'General Info'!$E$13, IF(Table1[[#This Row],[Fuel Type]]="Electric", Table1[[#This Row],[Energy saved (10%)]] * 'General Info'!$E$15, ""))) -> 67.00 | Y34: =IF(D34="Owned",('ROI & Scenario Analysis'!$C$4*Table1[[#This Row],[Number of vehicles]])*Table1[[#This Row],[Monthly depreciation]],"") -> 87.50 | Z34: =IF(D34="Rented",('ROI & Scenario Analysis'!$C$4*Table1[[#This Row],[Number of vehicles]])*Table1[[#This Row],[Monthly Lease/Rent ]],"") ->  | AA34: ='ROI & Scenario Analysis'!$C$4*Table1[[#This Row],[Monthly Insurance ]] -> 5.70 | AB34: =(Table1[[#This Row],[Number of vehicles]] * Table1[[#This Row],[Avg monthly KM per vehicle]] *0.25)*(1-'General Info'!$E$23) -> 625 | AC34: =IF(Table1[[#This Row],[Fuel Type]]="Electric", (Table1[[#This Row],[Monthly KM reduced (25%)]] * (Table1[[#This Row],[Electric cons. (kWh/100km)]] / 100)) * 'General Info'!$E$12, (Table1[[#This Row],[Monthly KM reduced (25%)]] * (Table1[[#This Row],[Fuel cons. (l/100km)]] / 100)) * IF(Table1[[#This Row],[Fuel Type]]="Petrol", 'General Info'!$E$10, 'General Info'!$E$11) ) -> 93.75 | AD34: =Table1[[#This Row],[Avg monthly maintenance]]*0.25*(1-'General Info'!$E$23) -> 18.75 | AE34: =IF(OR(Table1[[#This Row],[Fuel Type]]="Petrol", Table1[[#This Row],[Fuel Type]]="Diesel"), Table1[[#This Row],[Monthly KM reduced (25%)]] * (Table1[[#This Row],[Fuel cons. (l/100km)]] / 100), "") -> 62.50 | AF34: =IF(Table1[[#This Row],[Fuel Type]]="Electric", Table1[[#This Row],[Monthly KM reduced (25%)]] * (Table1[[#This Row],[Electric cons. (kWh/100km)]] / 100), "") ->  | AG34: =IF(Table1[[#This Row],[Fuel Type]]="Petrol", Table1[[#This Row],[Fuel Saved (25%)]] * 'General Info'!$E$14, IF(Table1[[#This Row],[Fuel Type]]="Diesel", Table1[[#This Row],[Fuel Saved (25%)]] * 'General Info'!$E$13, IF(Table1[[#This Row],[Fuel Type]]="Electric", Table1[[#This Row],[Energy Saved (25%)]] * 'General Info'!$E$15, ""))) -> 167.50 | AH34: =IF(D34="Owned",('ROI & Scenario Analysis'!$D$4*Table1[[#This Row],[Number of vehicles]])*Table1[[#This Row],[Monthly depreciation]],"") -> 218.75 | AI34: =IF(D34="Rented",('ROI & Scenario Analysis'!$D$4*Table1[[#This Row],[Number of vehicles]])*Table1[[#This Row],[Monthly Lease/Rent ]],"") ->  | AJ34: ='ROI & Scenario Analysis'!$D$4*Table1[[#This Row],[Monthly Insurance ]] -> 14.25 | AK34: =(Table1[[#This Row],[Number of vehicles]] * Table1[[#This Row],[Avg monthly KM per vehicle]] *0.5)*(1-'General Info'!$E$23) -> 1,250 | AL34: =IF(Table1[[#This Row],[Fuel Type]]="Electric", (Table1[[#This Row],[Monthly KM reduced (50%)]] * (Table1[[#This Row],[Electric cons. (kWh/100km)]] / 100)) * 'General Info'!$E$12, (Table1[[#This Row],[Monthly KM reduced (50%)]] * (Table1[[#This Row],[Fuel cons. (l/100km)]] / 100)) * IF(Table1[[#This Row],[Fuel Type]]="Petrol", 'General Info'!$E$10, 'General Info'!$E$11) ) -> 187.50 | AM34: =Table1[[#This Row],[Avg monthly maintenance]]*0.5*(1-'General Info'!$E$23) -> 37.50 | AN34: =IF(OR(Table1[[#This Row],[Fuel Type]]="Petrol", Table1[[#This Row],[Fuel Type]]="Diesel"), Table1[[#This Row],[Monthly KM reduced (50%)]] * (Table1[[#This Row],[Fuel cons. (l/100km)]] / 100), "") -> 125.00 | AO34: =IF(Table1[[#This Row],[Fuel Type]]="Electric", Table1[[#This Row],[Monthly KM reduced (50%)]] * (Table1[[#This Row],[Electric cons. (kWh/100km)]] / 100), "") ->  | AP34: =IF(Table1[[#This Row],[Fuel Type]]="Petrol", Table1[[#This Row],[Fuel Saved (50%)]] * 'General Info'!$E$14, IF(Table1[[#This Row],[Fuel Type]]="Diesel", Table1[[#This Row],[Fuel Saved (50%)]] * 'General Info'!$E$13, IF(Table1[[#This Row],[Fuel Type]]="Electric", Table1[[#This Row],[Energy Saved (50%)]] * 'General Info'!$E$15, ""))) -> 335.00 | AQ34: =IF(D34="Owned",('ROI & Scenario Analysis'!$E$4*Table1[[#This Row],[Number of vehicles]])*Table1[[#This Row],[Monthly depreciation]],"") -> 437.50 | AR34: =IF(D34="Rented",('ROI & Scenario Analysis'!$E$4*Table1[[#This Row],[Number of vehicles]])*Table1[[#This Row],[Monthly Lease/Rent ]],"") ->  | AS34: ='ROI & Scenario Analysis'!$E$4*Table1[[#This Row],[Monthly Insurance ]] -> 28.50 | AT34: =Table1[[#This Row],[Number of vehicles]] * Table1[[#This Row],[Avg monthly KM per vehicle]] * ('General Info'!$E$22) * (1 - 'General Info'!$E$23) -> 500 | AU34: =IF(OR(Table1[[#This Row],[Fuel Type]]="Petrol", Table1[[#This Row],[Fuel Type]]="Diesel"), Table1[ [#This Row],[Monthly KM Reduced (User %)] ] * (Table1[[#This Row],[Fuel cons. (l/100km)]] / 100), "") -> 50 | AV34: =IF(Table1[[#This Row],[Fuel Type]]="Electric", Table1[ [#This Row],[Monthly KM Reduced (User %)] ] * (Table1[[#This Row],[Electric cons. (kWh/100km)]] / 100), "") ->  | AW34: =IF(Table1[[#This Row],[Fuel Type]]="Petrol", Table1[[#This Row],[Fuel Saved (User %)]] * 'General Info'!$E$10, IF(Table1[[#This Row],[Fuel Type]]="Diesel", Table1[[#This Row],[Fuel Saved (User %)]] * 'General Info'!$E$11, IF(Table1[[#This Row],[Fuel Type]]="Electric", Table1[[#This Row],[Energy Saved (User %)]] * 'General Info'!$E$12, ""))) -> 75 | AX34: =IF(Table1[[#This Row],[Fuel Type]]="Petrol", Table1[[#This Row],[Fuel Saved (User %)]] * 'General Info'!$E$14, IF(Table1[[#This Row],[Fuel Type]]="Diesel", Table1[[#This Row],[Fuel Saved (User %)]] * 'General Info'!$E$13, IF(Table1[[#This Row],[Fuel Type]]="Electric", Table1[[#This Row],[Energy Saved (User %)]] * 'General Info'!$E$15, ""))) -> 134 | AY34: =Table1[[#This Row],[Avg monthly maintenance]]*'General Info'!$E$22*(1-'General Info'!$E$23) -> 15.00 | AZ34: =IF(D34="Owned",('ROI & Scenario Analysis'!$B$4*Table1[[#This Row],[Number of vehicles]])*Table1[[#This Row],[Monthly depreciation]],"") -> 175 | BA34: =IF(D34="Rented",('ROI & Scenario Analysis'!$B$4*Table1[[#This Row],[Number of vehicles]])*Table1[[#This Row],[Monthly Lease/Rent ]],"") ->  | BB34: ='ROI & Scenario Analysis'!$B$4*Table1[[#This Row],[Monthly Insurance ]] -> 11.4
B35: Light vehicle (Sedan/City vehicle) | C35: Electric | D35: Owned | E35: 6 | F35: 800 | H35: 17 | J35: 60 | K35: 100 | L35: 28000 | M35: 2022 | N35: 10 | O35: 5000 | P35: 191.67 | Q35: =IF(Table1[[#This Row],[Fuel Type]]="Diesel", (Table1[[#This Row],[Avg monthly KM per vehicle]]/100)*Table1[[#This Row],[Fuel cons. (l/100km)]]*('General Info'!$E$11), IF(Table1[[#This Row],[Fuel Type]]="Petrol", (Table1[[#This Row],[Avg monthly KM per vehicle]]/100)*Table1[[#This Row],[Fuel cons. (l/100km)]]*('General Info'!$E$10), IF(Table1[[#This Row],[Fuel Type]]="Electric", (Table1[[#This Row],[Avg monthly KM per vehicle]]/100)*Table1[[#This Row],[Electric cons. (kWh/100km)]]*('General Info'!$E$12), ""))) -> 34.00 | R35: =IF(Table1[[#This Row],[Ownership]]="Owned",Table1[[#This Row],[Monthly Insurance ]]+Table1[[#This Row],[Avg monthly maintenance]]+Table1[[#This Row],[Monthly depreciation]]+Table1[[#This Row],[Monthly fuel/energy cost per vehicle]],Table1[[#This Row],[Monthly Insurance ]]+Table1[[#This Row],[Avg monthly maintenance]]+Table1[[#This Row],[Monthly Lease/Rent ]]+Table1[[#This Row],[Monthly fuel/energy cost per vehicle]]) -> 385.67 | S35: =(Table1[[#This Row],[Number of vehicles]] * Table1[[#This Row],[Avg monthly KM per vehicle]] *0.1)*(1-'General Info'!$E$23) -> 240 | T35: =IF(Table1[[#This Row],[Fuel Type]]="Electric", (Table1[[#This Row],[Monthly KM reduced (10%)]] * (Table1[[#This Row],[Electric cons. (kWh/100km)]] / 100)) * 'General Info'!$E$12, (Table1[[#This Row],[Monthly KM reduced (10%)]] * (Table1[[#This Row],[Fuel cons. (l/100km)]] / 100)) * IF(Table1[[#This Row],[Fuel Type]]="Petrol", 'General Info'!$E$10, 'General Info'!$E$11) ) -> 10.20 | U35: =Table1[[#This Row],[Avg monthly maintenance]]*0.1*(1-'General Info'!$E$23) -> 5.00 | V35: =IF(OR(Table1[[#This Row],[Fuel Type]]="Petrol", Table1[[#This Row],[Fuel Type]]="Diesel"), Table1[[#This Row],[Monthly KM reduced (10%)]] * (Table1[[#This Row],[Fuel cons. (l/100km)]] / 100), "") ->  | W35: =IF(Table1[[#This Row],[Fuel Type]]="Electric", Table1[[#This Row],[Monthly KM reduced (10%)]] * (Table1[[#This Row],[Electric cons. (kWh/100km)]] / 100), "") -> 40.80 | X35: =IF(Table1[[#This Row],[Fuel Type]]="Petrol", Table1[[#This Row],[Fuel saved (10%)]] * 'General Info'!$E$14, IF(Table1[[#This Row],[Fuel Type]]="Diesel", Table1[[#This Row],[Fuel saved (10%)]] * 'General Info'!$E$13, IF(Table1[[#This Row],[Fuel Type]]="Electric", Table1[[#This Row],[Energy saved (10%)]] * 'General Info'!$E$15, ""))) -> 19.38 | Y35: =IF(D35="Owned",('ROI & Scenario Analysis'!$C$4*Table1[[#This Row],[Number of vehicles]])*Table1[[#This Row],[Monthly depreciation]],"") -> 69.00 | Z35: =IF(D35="Rented",('ROI & Scenario Analysis'!$C$4*Table1[[#This Row],[Number of vehicles]])*Table1[[#This Row],[Monthly Lease/Rent ]],"") ->  | AA35: ='ROI & Scenario Analysis'!$C$4*Table1[[#This Row],[Monthly Insurance ]] -> 3.60 | AB35: =(Table1[[#This Row],[Number of vehicles]] * Table1[[#This Row],[Avg monthly KM per vehicle]] *0.25)*(1-'General Info'!$E$23) -> 600 | AC35: =IF(Table1[[#This Row],[Fuel Type]]="Electric", (Table1[[#This Row],[Monthly KM reduced (25%)]] * (Table1[[#This Row],[Electric cons. (kWh/100km)]] / 100)) * 'General Info'!$E$12, (Table1[[#This Row],[Monthly KM reduced (25%)]] * (Table1[[#This Row],[Fuel cons. (l/100km)]] / 100)) * IF(Table1[[#This Row],[Fuel Type]]="Petrol", 'General Info'!$E$10, 'General Info'!$E$11) ) -> 25.50 | AD35: =Table1[[#This Row],[Avg monthly maintenance]]*0.25*(1-'General Info'!$E$23) -> 12.50 | AE35: =IF(OR(Table1[[#This Row],[Fuel Type]]="Petrol", Table1[[#This Row],[Fuel Type]]="Diesel"), Table1[[#This Row],[Monthly KM reduced (25%)]] * (Table1[[#This Row],[Fuel cons. (l/100km)]] / 100), "") ->  | AF35: =IF(Table1[[#This Row],[Fuel Type]]="Electric", Table1[[#This Row],[Monthly KM reduced (25%)]] * (Table1[[#This Row],[Electric cons. (kWh/100km)]] / 100), "") -> 102.00 | AG35: =IF(Table1[[#This Row],[Fuel Type]]="Petrol", Table1[[#This Row],[Fuel Saved (25%)]] * 'General Info'!$E$14, IF(Table1[[#This Row],[Fuel Type]]="Diesel", Table1[[#This Row],[Fuel Saved (25%)]] * 'General Info'!$E$13, IF(Table1[[#This Row],[Fuel Type]]="Electric", Table1[[#This Row],[Energy Saved (25%)]] * 'General Info'!$E$15, ""))) -> 48.45 | AH35: =IF(D35="Owned",('ROI & Scenario Analysis'!$D$4*Table1[[#This Row],[Number of vehicles]])*Table1[[#This Row],[Monthly depreciation]],"") -> 172.50 | AI35: =IF(D35="Rented",('ROI & Scenario Analysis'!$D$4*Table1[[#This Row],[Number of vehicles]])*Table1[[#This Row],[Monthly Lease/Rent ]],"") ->  | AJ35: ='ROI & Scenario Analysis'!$D$4*Table1[[#This Row],[Monthly Insurance ]] -> 9.00 | AK35: =(Table1[[#This Row],[Number of vehicles]] * Table1[[#This Row],[Avg monthly KM per vehicle]] *0.5)*(1-'General Info'!$E$23) -> 1,200 | AL35: =IF(Table1[[#This Row],[Fuel Type]]="Electric", (Table1[[#This Row],[Monthly KM reduced (50%)]] * (Table1[[#This Row],[Electric cons. (kWh/100km)]] / 100)) * 'General Info'!$E$12, (Table1[[#This Row],[Monthly KM reduced (50%)]] * (Table1[[#This Row],[Fuel cons. (l/100km)]] / 100)) * IF(Table1[[#This Row],[Fuel Type]]="Petrol", 'General Info'!$E$10, 'General Info'!$E$11) ) -> 51.00 | AM35: =Table1[[#This Row],[Avg monthly maintenance]]*0.5*(1-'General Info'!$E$23) -> 25.00 | AN35: =IF(OR(Table1[[#This Row],[Fuel Type]]="Petrol", Table1[[#This Row],[Fuel Type]]="Diesel"), Table1[[#This Row],[Monthly KM reduced (50%)]] * (Table1[[#This Row],[Fuel cons. (l/100km)]] / 100), "") ->  | AO35: =IF(Table1[[#This Row],[Fuel Type]]="Electric", Table1[[#This Row],[Monthly KM reduced (50%)]] * (Table1[[#This Row],[Electric cons. (kWh/100km)]] / 100), "") -> 204.00 | AP35: =IF(Table1[[#This Row],[Fuel Type]]="Petrol", Table1[[#This Row],[Fuel Saved (50%)]] * 'General Info'!$E$14, IF(Table1[[#This Row],[Fuel Type]]="Diesel", Table1[[#This Row],[Fuel Saved (50%)]] * 'General Info'!$E$13, IF(Table1[[#This Row],[Fuel Type]]="Electric", Table1[[#This Row],[Energy Saved (50%)]] * 'General Info'!$E$15, ""))) -> 96.90 | AQ35: =IF(D35="Owned",('ROI & Scenario Analysis'!$E$4*Table1[[#This Row],[Number of vehicles]])*Table1[[#This Row],[Monthly depreciation]],"") -> 345.00 | AR35: =IF(D35="Rented",('ROI & Scenario Analysis'!$E$4*Table1[[#This Row],[Number of vehicles]])*Table1[[#This Row],[Monthly Lease/Rent ]],"") ->  | AS35: ='ROI & Scenario Analysis'!$E$4*Table1[[#This Row],[Monthly Insurance ]] -> 18.00 | AT35: =Table1[[#This Row],[Number of vehicles]] * Table1[[#This Row],[Avg monthly KM per vehicle]] * ('General Info'!$E$22) * (1 - 'General Info'!$E$23) -> 480 | AU35: =IF(OR(Table1[[#This Row],[Fuel Type]]="Petrol", Table1[[#This Row],[Fuel Type]]="Diesel"), Table1[ [#This Row],[Monthly KM Reduced (User %)] ] * (Table1[[#This Row],[Fuel cons. (l/100km)]] / 100), "") ->  | AV35: =IF(Table1[[#This Row],[Fuel Type]]="Electric", Table1[ [#This Row],[Monthly KM Reduced (User %)] ] * (Table1[[#This Row],[Electric cons. (kWh/100km)]] / 100), "") -> 81.6 | AW35: =IF(Table1[[#This Row],[Fuel Type]]="Petrol", Table1[[#This Row],[Fuel Saved (User %)]] * 'General Info'!$E$10, IF(Table1[[#This Row],[Fuel Type]]="Diesel", Table1[[#This Row],[Fuel Saved (User %)]] * 'General Info'!$E$11, IF(Table1[[#This Row],[Fuel Type]]="Electric", Table1[[#This Row],[Energy Saved (User %)]] * 'General Info'!$E$12, ""))) -> 20.4 | AX35: =IF(Table1[[#This Row],[Fuel Type]]="Petrol", Table1[[#This Row],[Fuel Saved (User %)]] * 'General Info'!$E$14, IF(Table1[[#This Row],[Fuel Type]]="Diesel", Table1[[#This Row],[Fuel Saved (User %)]] * 'General Info'!$E$13, IF(Table1[[#This Row],[Fuel Type]]="Electric", Table1[[#This Row],[Energy Saved (User %)]] * 'General Info'!$E$15, ""))) -> 38.76 | AY35: =Table1[[#This Row],[Avg monthly maintenance]]*'General Info'!$E$22*(1-'General Info'!$E$23) -> 10.00 | AZ35: =IF(D35="Owned",('ROI & Scenario Analysis'!$B$4*Table1[[#This Row],[Number of vehicles]])*Table1[[#This Row],[Monthly depreciation]],"") -> 138 | BA35: =IF(D35="Rented",('ROI & Scenario Analysis'!$B$4*Table1[[#This Row],[Number of vehicles]])*Table1[[#This Row],[Monthly Lease/Rent ]],"") ->  | BB35: ='ROI & Scenario Analysis'!$B$4*Table1[[#This Row],[Monthly Insurance ]] -> 7.2
B36: 4x4/SUV | C36: Petrol | D36: Rented | E36: 2 | F36: 1600 | G36: 10 | I36: 300 | J36: 85 | K36: 135 | Q36: =IF(Table1[[#This Row],[Fuel Type]]="Diesel", (Table1[[#This Row],[Avg monthly KM per vehicle]]/100)*Table1[[#This Row],[Fuel cons. (l/100km)]]*('General Info'!$E$11), IF(Table1[[#This Row],[Fuel Type]]="Petrol", (Table1[[#This Row],[Avg monthly KM per vehicle]]/100)*Table1[[#This Row],[Fuel cons. (l/100km)]]*('General Info'!$E$10), IF(Table1[[#This Row],[Fuel Type]]="Electric", (Table1[[#This Row],[Avg monthly KM per vehicle]]/100)*Table1[[#This Row],[Electric cons. (kWh/100km)]]*('General Info'!$E$12), ""))) -> 296.00 | R36: =IF(Table1[[#This Row],[Ownership]]="Owned",Table1[[#This Row],[Monthly Insurance ]]+Table1[[#This Row],[Avg monthly maintenance]]+Table1[[#This Row],[Monthly depreciation]]+Table1[[#This Row],[Monthly fuel/energy cost per vehicle]],Table1[[#This Row],[Monthly Insurance ]]+Table1[[#This Row],[Avg monthly maintenance]]+Table1[[#This Row],[Monthly Lease/Rent ]]+Table1[[#This Row],[Monthly fuel/energy cost per vehicle]]) -> 816.00 | S36: =(Table1[[#This Row],[Number of vehicles]] * Table1[[#This Row],[Avg monthly KM per vehicle]] *0.1)*(1-'General Info'!$E$23) -> 160 | T36: =IF(Table1[[#This Row],[Fuel Type]]="Electric", (Table1[[#This Row],[Monthly KM reduced (10%)]] * (Table1[[#This Row],[Electric cons. (kWh/100km)]] / 100)) * 'General Info'!$E$12, (Table1[[#This Row],[Monthly KM reduced (10%)]] * (Table1[[#This Row],[Fuel cons. (l/100km)]] / 100)) * IF(Table1[[#This Row],[Fuel Type]]="Petrol", 'General Info'!$E$10, 'General Info'!$E$11) ) -> 29.60 | U36: =Table1[[#This Row],[Avg monthly maintenance]]*0.1*(1-'General Info'!$E$23) -> 6.75 | V36: =IF(OR(Table1[[#This Row],[Fuel Type]]="Petrol", Table1[[#This Row],[Fuel Type]]="Diesel"), Table1[[#This Row],[Monthly KM reduced (10%)]] * (Table1[[#This Row],[Fuel cons. (l/100km)]] / 100), "") -> 16.00 | W36: =IF(Table1[[#This Row],[Fuel Type]]="Electric", Table1[[#This Row],[Monthly KM reduced (10%)]] * (Table1[[#This Row],[Electric cons. (kWh/100km)]] / 100), "") ->  | X36: =IF(Table1[[#This Row],[Fuel Type]]="Petrol", Table1[[#This Row],[Fuel saved (10%)]] * 'General Info'!$E$14, IF(Table1[[#This Row],[Fuel Type]]="Diesel", Table1[[#This Row],[Fuel saved (10%)]] * 'General Info'!$E$13, IF(Table1[[#This Row],[Fuel Type]]="Electric", Table1[[#This Row],[Energy saved (10%)]] * 'General Info'!$E$15, ""))) -> 36.96 | Y36: =IF(D36="Owned",('ROI & Scenario Analysis'!$C$4*Table1[[#This Row],[Number of vehicles]])*Table1[[#This Row],[Monthly depreciation]],"") ->  | Z36: =IF(D36="Rented",('ROI & Scenario Analysis'!$C$4*Table1[[#This Row],[Number of vehicles]])*Table1[[#This Row],[Monthly Lease/Rent ]],"") -> 36.00 | AA36: ='ROI & Scenario Analysis'!$C$4*Table1[[#This Row],[Monthly Insurance ]] -> 5.10 | AB36: =(Table1[[#This Row],[Number of vehicles]] * Table1[[#This Row],[Avg monthly KM per vehicle]] *0.25)*(1-'General Info'!$E$23) -> 400 | AC36: =IF(Table1[[#This Row],[Fuel Type]]="Electric", (Table1[[#This Row],[Monthly KM reduced (25%)]] * (Table1[[#This Row],[Electric cons. (kWh/100km)]] / 100)) * 'General Info'!$E$12, (Table1[[#This Row],[Monthly KM reduced (25%)]] * (Table1[[#This Row],[Fuel cons. (l/100km)]] / 100)) * IF(Table1[[#This Row],[Fuel Type]]="Petrol", 'General Info'!$E$10, 'General Info'!$E$11) ) -> 74.00 | AD36: =Table1[[#This Row],[Avg monthly maintenance]]*0.25*(1-'General Info'!$E$23) -> 16.88 | AE36: =IF(OR(Table1[[#This Row],[Fuel Type]]="Petrol", Table1[[#This Row],[Fuel Type]]="Diesel"), Table1[[#This Row],[Monthly KM reduced (25%)]] * (Table1[[#This Row],[Fuel cons. (l/100km)]] / 100), "") -> 40.00 | AF36: =IF(Table1[[#This Row],[Fuel Type]]="Electric", Table1[[#This Row],[Monthly KM reduced (25%)]] * (Table1[[#This Row],[Electric cons. (kWh/100km)]] / 100), "") ->  | AG36: =IF(Table1[[#This Row],[Fuel Type]]="Petrol", Table1[[#This Row],[Fuel Saved (25%)]] * 'General Info'!$E$14, IF(Table1[[#This Row],[Fuel Type]]="Diesel", Table1[[#This Row],[Fuel Saved (25%)]] * 'General Info'!$E$13, IF(Table1[[#This Row],[Fuel Type]]="Electric", Table1[[#This Row],[Energy Saved (25%)]] * 'General Info'!$E$15, ""))) -> 92.40 | AH36: =IF(D36="Owned",('ROI & Scenario Analysis'!$D$4*Table1[[#This Row],[Number of vehicles]])*Table1[[#This Row],[Monthly depreciation]],"") ->  | AI36: =IF(D36="Rented",('ROI & Scenario Analysis'!$D$4*Table1[[#This Row],[Number of vehicles]])*Table1[[#This Row],[Monthly Lease/Rent ]],"") -> 90.00 | AJ36: ='ROI & Scenario Analysis'!$D$4*Table1[[#This Row],[Monthly Insurance ]] -> 12.75 | AK36: =(Table1[[#This Row],[Number of vehicles]] * Table1[[#This Row],[Avg monthly KM per vehicle]] *0.5)*(1-'General Info'!$E$23) -> 800 | AL36: =IF(Table1[[#This Row],[Fuel Type]]="Electric", (Table1[[#This Row],[Monthly KM reduced (50%)]] * (Table1[[#This Row],[Electric cons. (kWh/100km)]] / 100)) * 'General Info'!$E$12, (Table1[[#This Row],[Monthly KM reduced (50%)]] * (Table1[[#This Row],[Fuel cons. (l/100km)]] / 100)) * IF(Table1[[#This Row],[Fuel Type]]="Petrol", 'General Info'!$E$10, 'General Info'!$E$11) ) -> 148.00 | AM36: =Table1[[#This Row],[Avg monthly maintenance]]*0.5*(1-'General Info'!$E$23) -> 33.75 | AN36: =IF(OR(Table1[[#This Row],[Fuel Type]]="Petrol", Table1[[#This Row],[Fuel Type]]="Diesel"), Table1[[#This Row],[Monthly KM reduced (50%)]] * (Table1[[#This Row],[Fuel cons. (l/100km)]] / 100), "") -> 80.00 | AO36: =IF(Table1[[#This Row],[Fuel Type]]="Electric", Table1[[#This Row],[Monthly KM reduced (50%)]] * (Table1[[#This Row],[Electric cons. (kWh/100km)]] / 100), "") ->  | AP36: =IF(Table1[[#This Row],[Fuel Type]]="Petrol", Table1[[#This Row],[Fuel Saved (50%)]] * 'General Info'!$E$14, IF(Table1[[#This Row],[Fuel Type]]="Diesel", Table1[[#This Row],[Fuel Saved (50%)]] * 'General Info'!$E$13, IF(Table1[[#This Row],[Fuel Type]]="Electric", Table1[[#This Row],[Energy Saved (50%)]] * 'General Info'!$E$15, ""))) -> 184.80 | AQ36: =IF(D36="Owned",('ROI & Scenario Analysis'!$E$4*Table1[[#This Row],[Number of vehicles]])*Table1[[#This Row],[Monthly depreciation]],"") ->  | AR36: =IF(D36="Rented",('ROI & Scenario Analysis'!$E$4*Table1[[#This Row],[Number of vehicles]])*Table1[[#This Row],[Monthly Lease/Rent ]],"") -> 180.00 | AS36: ='ROI & Scenario Analysis'!$E$4*Table1[[#This Row],[Monthly Insurance ]] -> 25.50 | AT36: =Table1[[#This Row],[Number of vehicles]] * Table1[[#This Row],[Avg monthly KM per vehicle]] * ('General Info'!$E$22) * (1 - 'General Info'!$E$23) -> 320 | AU36: =IF(OR(Table1[[#This Row],[Fuel Type]]="Petrol", Table1[[#This Row],[Fuel Type]]="Diesel"), Table1[ [#This Row],[Monthly KM Reduced (User %)] ] * (Table1[[#This Row],[Fuel cons. (l/100km)]] / 100), "") -> 32 | AV36: =IF(Table1[[#This Row],[Fuel Type]]="Electric", Table1[ [#This Row],[Monthly KM Reduced (User %)] ] * (Table1[[#This Row],[Electric cons. (kWh/100km)]] / 100), "") ->  | AW36: =IF(Table1[[#This Row],[Fuel Type]]="Petrol", Table1[[#This Row],[Fuel Saved (User %)]] * 'General Info'!$E$10, IF(Table1[[#This Row],[Fuel Type]]="Diesel", Table1[[#This Row],[Fuel Saved (User %)]] * 'General Info'!$E$11, IF(Table1[[#This Row],[Fuel Type]]="Electric", Table1[[#This Row],[Energy Saved (User %)]] * 'General Info'!$E$12, ""))) -> 59.2 | AX36: =IF(Table1[[#This Row],[Fuel Type]]="Petrol", Table1[[#This Row],[Fuel Saved (User %)]] * 'General Info'!$E$14, IF(Table1[[#This Row],[Fuel Type]]="Diesel", Table1[[#This Row],[Fuel Saved (User %)]] * 'General Info'!$E$13, IF(Table1[[#This Row],[Fuel Type]]="Electric", Table1[[#This Row],[Energy Saved (User %)]] * 'General Info'!$E$15, ""))) -> 73.92 | AY36: =Table1[[#This Row],[Avg monthly maintenance]]*'General Info'!$E$22*(1-'General Info'!$E$23) -> 13.50 | AZ36: =IF(D36="Owned",('ROI & Scenario Analysis'!$B$4*Table1[[#This Row],[Number of vehicles]])*Table1[[#This Row],[Monthly depreciation]],"") ->  | BA36: =IF(D36="Rented",('ROI & Scenario Analysis'!$B$4*Table1[[#This Row],[Number of vehicles]])*Table1[[#This Row],[Monthly Lease/Rent ]],"") -> 72 | BB36: ='ROI & Scenario Analysis'!$B$4*Table1[[#This Row],[Monthly Insurance ]] -> 10.2
B37: 4x4/SUV | P37: =IF(D37="Owned",(L37-O37)/N37/12,"") ->  | Q37: =IF(Table1[[#This Row],[Fuel Type]]="Diesel", (Table1[[#This Row],[Avg monthly KM per vehicle]]/100)*Table1[[#This Row],[Fuel cons. (l/100km)]]*('General Info'!$E$11), IF(Table1[[#This Row],[Fuel Type]]="Petrol", (Table1[[#This Row],[Avg monthly KM per vehicle]]/100)*Table1[[#This Row],[Fuel cons. (l/100km)]]*('General Info'!$E$10), IF(Table1[[#This Row],[Fuel Type]]="Electric", (Table1[[#This Row],[Avg monthly KM per vehicle]]/100)*Table1[[#This Row],[Electric cons. (kWh/100km)]]*('General Info'!$E$12), ""))) ->  | R37: =IF(Table1[[#This Row],[Ownership]]="Owned",Table1[[#This Row],[Monthly Insurance ]]+Table1[[#This Row],[Avg monthly maintenance]]+Table1[[#This Row],[Monthly depreciation]]+Table1[[#This Row],[Monthly fuel/energy cost per vehicle]],Table1[[#This Row],[Monthly Insurance ]]+Table1[[#This Row],[Avg monthly maintenance]]+Table1[[#This Row],[Monthly Lease/Rent ]]+Table1[[#This Row],[Monthly fuel/energy cost per vehicle]]) ->  | S37: =(Table1[[#This Row],[Number of vehicles]] * Table1[[#This Row],[Avg monthly KM per vehicle]] *0.1)*(1-'General Info'!$E$23) -> 0 | T37: =IF(Table1[[#This Row],[Fuel Type]]="Electric", (Table1[[#This Row],[Monthly KM reduced (10%)]] * (Table1[[#This Row],[Electric cons. (kWh/100km)]] / 100)) * 'General Info'!$E$12, (Table1[[#This Row],[Monthly KM reduced (10%)]] * (Table1[[#This Row],[Fuel cons. (l/100km)]] / 100)) * IF(Table1[[#This Row],[Fuel Type]]="Petrol", 'General Info'!$E$10, 'General Info'!$E$11) ) -> 0.00 | U37: =Table1[[#This Row],[Avg monthly maintenance]]*0.1*(1-'General Info'!$E$23) -> 0.00 | V37: =IF(OR(Table1[[#This Row],[Fuel Type]]="Petrol", Table1[[#This Row],[Fuel Type]]="Diesel"), Table1[[#This Row],[Monthly KM reduced (10%)]] * (Table1[[#This Row],[Fuel cons. (l/100km)]] / 100), "") ->  | W37: =IF(Table1[[#This Row],[Fuel Type]]="Electric", Table1[[#This Row],[Monthly KM reduced (10%)]] * (Table1[[#This Row],[Electric cons. (kWh/100km)]] / 100), "") ->  | X37: =IF(Table1[[#This Row],[Fuel Type]]="Petrol", Table1[[#This Row],[Fuel saved (10%)]] * 'General Info'!$E$14, IF(Table1[[#This Row],[Fuel Type]]="Diesel", Table1[[#This Row],[Fuel saved (10%)]] * 'General Info'!$E$13, IF(Table1[[#This Row],[Fuel Type]]="Electric", Table1[[#This Row],[Energy saved (10%)]] * 'General Info'!$E$15, ""))) ->  | Y37: =IF(D37="Owned",('ROI & Scenario Analysis'!$C$4*Table1[[#This Row],[Number of vehicles]])*Table1[[#This Row],[Monthly depreciation]],"") ->  | Z37: =IF(D37="Rented",('ROI & Scenario Analysis'!$C$4*Table1[[#This Row],[Number of vehicles]])*Table1[[#This Row],[Monthly Lease/Rent ]],"") ->  | AA37: ='ROI & Scenario Analysis'!$C$4*Table1[[#This Row],[Monthly Insurance ]] -> 0.00 | AB37: =(Table1[[#This Row],[Number of vehicles]] * Table1[[#This Row],[Avg monthly KM per vehicle]] *0.25)*(1-'General Info'!$E$23) -> 0 | AC37: =IF(Table1[[#This Row],[Fuel Type]]="Electric", (Table1[[#This Row],[Monthly KM reduced (25%)]] * (Table1[[#This Row],[Electric cons. (kWh/100km)]] / 100)) * 'General Info'!$E$12, (Table1[[#This Row],[Monthly KM reduced (25%)]] * (Table1[[#This Row],[Fuel cons. (l/100km)]] / 100)) * IF(Table1[[#This Row],[Fuel Type]]="Petrol", 'General Info'!$E$10, 'General Info'!$E$11) ) -> 0.00 | AD37: =Table1[[#This Row],[Avg monthly maintenance]]*0.25*(1-'General Info'!$E$23) -> 0.00 | AE37: =IF(OR(Table1[[#This Row],[Fuel Type]]="Petrol", Table1[[#This Row],[Fuel Type]]="Diesel"), Table1[[#This Row],[Monthly KM reduced (25%)]] * (Table1[[#This Row],[Fuel cons. (l/100km)]] / 100), "") ->  | AF37: =IF(Table1[[#This Row],[Fuel Type]]="Electric", Table1[[#This Row],[Monthly KM reduced (25%)]] * (Table1[[#This Row],[Electric cons. (kWh/100km)]] / 100), "") ->  | AG37: =IF(Table1[[#This Row],[Fuel Type]]="Petrol", Table1[[#This Row],[Fuel Saved (25%)]] * 'General Info'!$E$14, IF(Table1[[#This Row],[Fuel Type]]="Diesel", Table1[[#This Row],[Fuel Saved (25%)]] * 'General Info'!$E$13, IF(Table1[[#This Row],[Fuel Type]]="Electric", Table1[[#This Row],[Energy Saved (25%)]] * 'General Info'!$E$15, ""))) ->  | AH37: =IF(D37="Owned",('ROI & Scenario Analysis'!$D$4*Table1[[#This Row],[Number of vehicles]])*Table1[[#This Row],[Monthly depreciation]],"") ->  | AI37: =IF(D37="Rented",('ROI & Scenario Analysis'!$D$4*Table1[[#This Row],[Number of vehicles]])*Table1[[#This Row],[Monthly Lease/Rent ]],"") ->  | AJ37: ='ROI & Scenario Analysis'!$D$4*Table1[[#This Row],[Monthly Insurance ]] -> 0.00 | AK37: =(Table1[[#This Row],[Number of vehicles]] * Table1[[#This Row],[Avg monthly KM per vehicle]] *0.5)*(1-'General Info'!$E$23) -> 0 | AL37: =IF(Table1[[#This Row],[Fuel Type]]="Electric", (Table1[[#This Row],[Monthly KM reduced (50%)]] * (Table1[[#This Row],[Electric cons. (kWh/100km)]] / 100)) * 'General Info'!$E$12, (Table1[[#This Row],[Monthly KM reduced (50%)]] * (Table1[[#This Row],[Fuel cons. (l/100km)]] / 100)) * IF(Table1[[#This Row],[Fuel Type]]="Petrol", 'General Info'!$E$10, 'General Info'!$E$11) ) -> 0.00 | AM37: =Table1[[#This Row],[Avg monthly maintenance]]*0.5*(1-'General Info'!$E$23) -> 0.00 | AN37: =IF(OR(Table1[[#This Row],[Fuel Type]]="Petrol", Table1[[#This Row],[Fuel Type]]="Diesel"), Table1[[#This Row],[Monthly KM reduced (50%)]] * (Table1[[#This Row],[Fuel cons. (l/100km)]] / 100), "") ->  | AO37: =IF(Table1[[#This Row],[Fuel Type]]="Electric", Table1[[#This Row],[Monthly KM reduced (50%)]] * (Table1[[#This Row],[Electric cons. (kWh/100km)]] / 100), "") ->  | AP37: =IF(Table1[[#This Row],[Fuel Type]]="Petrol", Table1[[#This Row],[Fuel Saved (50%)]] * 'General Info'!$E$14, IF(Table1[[#This Row],[Fuel Type]]="Diesel", Table1[[#This Row],[Fuel Saved (50%)]] * 'General Info'!$E$13, IF(Table1[[#This Row],[Fuel Type]]="Electric", Table1[[#This Row],[Energy Saved (50%)]] * 'General Info'!$E$15, ""))) ->  | AQ37: =IF(D37="Owned",('ROI & Scenario Analysis'!$E$4*Table1[[#This Row],[Number of vehicles]])*Table1[[#This Row],[Monthly depreciation]],"") ->  | AR37: =IF(D37="Rented",('ROI & Scenario Analysis'!$E$4*Table1[[#This Row],[Number of vehicles]])*Table1[[#This Row],[Monthly Lease/Rent ]],"") ->  | AS37: ='ROI & Scenario Analysis'!$E$4*Table1[[#This Row],[Monthly Insurance ]] -> 0.00 | AT37: =Table1[[#This Row],[Number of vehicles]] * Table1[[#This Row],[Avg monthly KM per vehicle]] * ('General Info'!$E$22) * (1 - 'General Info'!$E$23) -> 0 | AU37: =IF(OR(Table1[[#This Row],[Fuel Type]]="Petrol", Table1[[#This Row],[Fuel Type]]="Diesel"), Table1[ [#This Row],[Monthly KM Reduced (User %)] ] * (Table1[[#This Row],[Fuel cons. (l/100km)]] / 100), "") ->  | AV37: =IF(Table1[[#This Row],[Fuel Type]]="Electric", Table1[ [#This Row],[Monthly KM Reduced (User %)] ] * (Table1[[#This Row],[Electric cons. (kWh/100km)]] / 100), "") ->  | AW37: =IF(Table1[[#This Row],[Fuel Type]]="Petrol", Table1[[#This Row],[Fuel Saved (User %)]] * 'General Info'!$E$10, IF(Table1[[#This Row],[Fuel Type]]="Diesel", Table1[[#This Row],[Fuel Saved (User %)]] * 'General Info'!$E$11, IF(Table1[[#This Row],[Fuel Type]]="Electric", Table1[[#This Row],[Energy Saved (User %)]] * 'General Info'!$E$12, ""))) ->  | AX37: =IF(Table1[[#This Row],[Fuel Type]]="Petrol", Table1[[#This Row],[Fuel Saved (User %)]] * 'General Info'!$E$14, IF(Table1[[#This Row],[Fuel Type]]="Diesel", Table1[[#This Row],[Fuel Saved (User %)]] * 'General Info'!$E$13, IF(Table1[[#This Row],[Fuel Type]]="Electric", Table1[[#This Row],[Energy Saved (User %)]] * 'General Info'!$E$15, ""))) ->  | AY37: =Table1[[#This Row],[Avg monthly maintenance]]*'General Info'!$E$22*(1-'General Info'!$E$23) -> 0.00 | AZ37: =IF(D37="Owned",('ROI & Scenario Analysis'!$B$4*Table1[[#This Row],[Number of vehicles]])*Table1[[#This Row],[Monthly depreciation]],"") ->  | BA37: =IF(D37="Rented",('ROI & Scenario Analysis'!$B$4*Table1[[#This Row],[Number of vehicles]])*Table1[[#This Row],[Monthly Lease/Rent ]],"") ->  | BB37: ='ROI & Scenario Analysis'!$B$4*Table1[[#This Row],[Monthly Insurance ]] -> 0

Sheet Vehicle sharing impact results

Sheet ROI & Scenario Analysis
B3: ="Your chosen scenario (" & TEXT('General Info'!E22, "0%") & ")" -> Your chosen scenario (20%) | C3: 10% | D3: 25% | E3: 50% | G3: ='Impact Summary'!C3 -> Based on the ride sharing analysis, the fleet size of Example Organisation could be reduced by 12% (4 vehicles removed).This means fewer vehicles are needed to meet the same transport demand, helping the organisation to work more efficiently and sustainably. This change would lead to a reduction of approximately 5000 kilometers traveled each month, saving around 358 – 448 litres litres of fuel per month and reducing CO2 emissions by 938 – 1173 kg kg per month. These reductions directly contribute to lower environmental impact and support sustainability goals. The estimated total cost savings in the first year would range between $ 9.290 – $ 11.613, while net savings after accounting for all costs would be $ 13.691. The initial investment to start the vehicle sharing scheme could be recovered within 1 month(s). These calculations are based on a transport demand sharing rate of 20%, meaning nearly a third of trips could be completed using shared vehicles instead of individual ones.
A4: Estimated Fleet Reduction | B4: ='General Info'!$E$22*0.6 -> 12% | C4: =C3*0.6 -> 6% | D4: =D3*0.6 -> 15% | E4: 30%
A5: Current Nr of vehicles | B5: =SUM(Table1[Number of vehicles]) -> 36 | C5: =SUM(Table1[Number of vehicles]) -> 36 | D5: =SUM(Table1[Number of vehicles]) -> 36 | E5: =SUM(Table1[Number of vehicles]) -> 36
A6: Vehicles Reduced | B6: =B5*B4 -> 4 | C6: =C5*C4 -> 2 | D6: 5 | E6: 11
A7: Km Reduced (monthly) | B7: =SUM(Table1[Monthly KM Reduced (User %)]) -> 5,000 | C7: =SUM(Table1[Monthly KM reduced (10%)]) -> 2,500 | D7: =SUM(Table1[Monthly KM reduced (25%)]) -> 6,250 | E7: =SUM(Table1[Monthly KM reduced (50%)]) -> 12,500
A8: Fuel saved in litres (monthly) | B8: =TEXT(SUM(Table1[Fuel Saved (User %)])*0.8, "0") & " – " & TEXT(SUM(Table1[Fuel Saved (User %)]), "0") & " litres" -> 358 – 448 litres | C8: =TEXT(SUM(Table1[Fuel saved (10%)])*0.8, "0") & " – " & TEXT(SUM(Table1[Fuel saved (10%)]), "0") & " litres" -> 179 – 224 litres | D8: =TEXT(SUM(Table1[Fuel Saved (25%)])*0.8, "0") & " – " & TEXT(SUM(Table1[Fuel Saved (25%)]), "0") & " litres" -> 448 – 560 litres | E8: =TEXT(SUM(Table1[Fuel Saved (50%)])*0.8, "0") & " – " & TEXT(SUM(Table1[Fuel Saved (50%)]), "0") & " litres" -> 896 – 1120 litres
A9: Energy saved (monthly) | B9: =TEXT(SUM(Table1[Energy Saved (User %)])*0.8, "0") & " – " & TEXT(SUM(Table1[Energy Saved (User %)]), "0") & " kWh" -> 65 – 82 kWh | C9: =TEXT(SUM(Table1[Energy saved (10%)])*0.8, "0") & " – " & TEXT(SUM(Table1[Energy saved (10%)]), "0") & " kWh" -> 33 – 41 kWh | D9: =TEXT(SUM(Table1[Energy Saved (25%)])*0.8, "0") & " – " & TEXT(SUM(Table1[Energy Saved (25%)]), "0") & " kWh" -> 82 – 102 kWh | E9: =TEXT(SUM(Table1[Energy Saved (50%)])*0.8, "0") & " – " & TEXT(SUM(Table1[Energy Saved (50%)]), "0") & " kWh" -> 163 – 204 kWh
A10: CO₂ Saved (monthly) | B10: =TEXT(SUM(Table1[CO2 Saved (User %)])*0.8, "0") & " – " & TEXT(SUM(Table1[CO2 Saved (User %)]), "0") & " kg" -> 938 – 1173 kg | C10: =TEXT(SUM(Table1[CO2 Saved (10%)])*0.8, "0") & " – " & TEXT(SUM(Table1[CO2 Saved (10%)]), "0") & " kg" -> 469 – 586 kg | D10: =TEXT(SUM(Table1[CO2 Saved (25%)])*0.8, "0") & " – " & TEXT(SUM(Table1[CO2 Saved (25%)]), "0") & " kg" -> 1173 – 1466 kg | E10: =TEXT(SUM(Table1[CO2 Saved (50%)])*0.8, "0") & " – " & TEXT(SUM(Table1[CO2 Saved (50%)]), "0") & " kg" -> 2345 – 2931 kg
A11: Variable Cost Savings (monthly) | B11: ='General Info'!$E$9 & " " & TEXT((SUM(Table1[Fuel/Energy Cost Saved (User %)]) + SUM(Table1[Maintenance costs saved (user %)]))*0.8, "#.##0") & " – " & 'General Info'!$E$9 & " " & TEXT((SUM(Table1[Fuel/Energy Cost Saved (User %)]) + SUM(Table1[Maintenance costs saved (user %)])), "#.##0") -> $ 684 – $ 855 | C11: ='General Info'!$E$9 & " " & TEXT((SUM(Table1[Fuel/Energy costs saved (10%)]) + SUM(Table1[Maintenance cost saved (10%)]))*0.8, "#.##0") & " – " & 'General Info'!$E$9 & " " & TEXT((SUM(Table1[Fuel/Energy costs saved (10%)]) + SUM(Table1[Maintenance cost saved (10%)])), "#.##0") -> $ 342 – $ 428 | D11: ='General Info'!$E$9 & " " & TEXT((SUM(Table1[Fuel/Energy costs saved (25%)]) + SUM(Table1[Maintenance cost saved (25%)]))*0.8, "#.##0") & " – " & 'General Info'!$E$9 & " " & TEXT((SUM(Table1[Fuel/Energy costs saved (25%)]) + SUM(Table1[Maintenance cost saved (25%)])), "#.##0") -> $ 855 – $ 1.069 | E11: ='General Info'!$E$9 & " " & TEXT((SUM(Table1[Fuel/Energy costs saved (50%)]) + SUM(Table1[Maintenance cost saved (50%)]))*0.8, "#.##0") & " – " & 'General Info'!$E$9 & " " & TEXT((SUM(Table1[Fuel/Energy costs saved (50%)]) + SUM(Table1[Maintenance cost saved (50%)])), "#.##0") -> $ 1.710 – $ 2.138
A12: Fixed Cost Savings (motnhly) | B12: ='General Info'!$E$9 & " " & TEXT((SUM(Table1[Monthly depreciation]) * B6 + SUM(Table1[Monthly Lease/Rent ]) * B6 + SUM(Table1[[Monthly Insurance ]]) * B6) * 0.8, "#.##0") & " – " & 'General Info'!$E$9 & " " & TEXT((SUM(Table1[Monthly depreciation]) * B6 + SUM(Table1[Monthly Lease/Rent ]) * B6 + SUM(Table1[[Monthly Insurance ]]) * B6), "#.##0") -> $ 8.606 – $ 10.758 | C12: ='General Info'!$E$9 & " " & TEXT((SUM(Table1[Monthly depreciation]) * C6 + SUM(Table1[Monthly Lease/Rent ]) * C6 + SUM(Table1[[Monthly Insurance ]]) * C6) * 0.8, "#.##0") & " – " & 'General Info'!$E$9 & " " & TEXT((SUM(Table1[Monthly depreciation]) * C6 + SUM(Table1[Monthly Lease/Rent ]) * C6 + SUM(Table1[[Monthly Insurance ]]) * C6), "#.##0") -> $ 4.303 – $ 5.379 | D12: ='General Info'!$E$9 & " " & TEXT((SUM(Table1[Monthly depreciation]) * D6 + SUM(Table1[Monthly Lease/Rent ]) * D6 + SUM(Table1[[Monthly Insurance ]]) * D6) * 0.8, "#.##0") & " – " & 'General Info'!$E$9 & " " & TEXT((SUM(Table1[Monthly depreciation]) * D6 + SUM(Table1[Monthly Lease/Rent ]) * D6 + SUM(Table1[[Monthly Insurance ]]) * D6), "#.##0") -> $ 10.758 – $ 13.447 | E12: ='General Info'!$E$9 & " " & TEXT((SUM(Table1[Monthly depreciation]) * E6 + SUM(Table1[Monthly Lease/Rent ]) * E6 + SUM(Table1[[Monthly Insurance ]]) * E6) * 0.8, "#.##0") & " – " & 'General Info'!$E$9 & " " & TEXT((SUM(Table1[Monthly depreciation]) * E6 + SUM(Table1[Monthly Lease/Rent ]) * E6 + SUM(Table1[[Monthly Insurance ]]) * E6), "#.##0") -> $ 21.516 – $ 26.895
A13: Total Cost Savings (monthly) | B13: ='General Info'!$E$9 & " " & TEXT( ( SUM(Table1[Fuel/Energy Cost Saved (User %)]) + SUM(Table1[Maintenance costs saved (user %)]) + SUM(Table1[Monthly depreciation]) * B6 + SUM(Table1[Monthly Lease/Rent ]) * B6 + SUM(Table1[[Monthly Insurance ]]) * B6 ) * 0.8, "#.##0" ) & " – " & 'General Info'!$E$9 & " " & TEXT( ( SUM(Table1[Fuel/Energy Cost Saved (User %)]) + SUM(Table1[Maintenance costs saved (user %)]) + SUM(Table1[Monthly depreciation]) * B6 + SUM(Table1[Monthly Lease/Rent ]) * B6 + SUM(Table1[[Monthly Insurance ]]) * B6 ), "#.##0" ) -> $ 9.290 – $ 11.613 | C13: ='General Info'!$E$9 & " " & TEXT( ( SUM(Table1[Fuel/Energy costs saved (10%)]) + SUM(Table1[Maintenance cost saved (10%)]) + SUM(Table1[Monthly depreciation]) * C6 + SUM(Table1[Monthly Lease/Rent ]) * C6 + SUM(Table1[[Monthly Insurance ]]) * C6 ) * 0.8, "#.##0" ) & " – " & 'General Info'!$E$9 & " " & TEXT( ( SUM(Table1[Fuel/Energy costs saved (10%)]) + SUM(Table1[Maintenance cost saved (10%)]) + SUM(Table1[Monthly depreciation]) * C6 + SUM(Table1[Monthly Lease/Rent ]) * C6 + SUM(Table1[[Monthly Insurance ]]) * C6 ), "#.##0" ) -> $ 4.645 – $ 5.807 | D13: ='General Info'!$E$9 & " " & TEXT( ( SUM(Table1[Fuel/Energy costs saved (25%)]) + SUM(Table1[Maintenance cost saved (25%)]) + SUM(Table1[Monthly depreciation]) * D6 + SUM(Table1[Monthly Lease/Rent ]) * D6 + SUM(Table1[[Monthly Insurance ]]) * D6 ) * 0.8, "#.##0" ) & " – " & 'General Info'!$E$9 & " " & TEXT( ( SUM(Table1[Fuel/Energy costs saved (25%)]) + SUM(Table1[Maintenance cost saved (25%)]) + SUM(Table1[Monthly depreciation]) * D6 + SUM(Table1[Monthly Lease/Rent ]) * D6 + SUM(Table1[[Monthly Insurance ]]) * D6 ), "#.##0" ) -> $ 11.613 – $ 14.516 | E13: ='General Info'!$E$9 & " " & TEXT( ( SUM(Table1[Fuel/Energy costs saved (50%)]) + SUM(Table1[Maintenance cost saved (50%)]) + SUM(Table1[Monthly depreciation]) * E6 + SUM(Table1[Monthly Lease/Rent ]) * E6 + SUM(Table1[[Monthly Insurance ]]) * E6 ) * 0.8, "#.##0" ) & " – " & 'General Info'!$E$9 & " " & TEXT( ( SUM(Table1[Fuel/Energy costs saved (50%)]) + SUM(Table1[Maintenance cost saved (50%)]) + SUM(Table1[Monthly depreciation]) * E6 + SUM(Table1[Monthly Lease/Rent ]) * E6 + SUM(Table1[[Monthly Insurance ]]) * E6 ), "#.##0" ) -> $ 23.226 – $ 29.033
A14: One-Time Investment | B14: ='General Info'!$E$9 & " " & 'General Info'!$E$16 -> $ 500 | C14: ='General Info'!$E$9 & " " & 'General Info'!$E$16 -> $ 500 | D14: ='General Info'!$E$9 & " " & 'General Info'!$E$16 -> $ 500 | E14: ='General Info'!$E$9 & " " & 'General Info'!$E$16 -> $ 500
A15: Monthly Recurring Costs | B15: ='General Info'!E9 & " " & TEXT('General Info'!E21+('General Info'!E18*'General Info'!E20), "#.##0") -> $ 875 | C15: ='General Info'!E9 & " " & TEXT('General Info'!E21+('General Info'!E18*'General Info'!E20), "#.##0") -> $ 875 | D15: ='General Info'!E9 & " " & TEXT('General Info'!E21+('General Info'!E18*'General Info'!E20), "#.##0") -> $ 875 | E15: ='General Info'!E9 & " " & TEXT('General Info'!E21+('General Info'!E18*'General Info'!E20), "#.##0") -> $ 875
A16: MonthlyNetSavings | B16: ='General Info'!$E$9 & " " & TEXT((SUM(Table1[Fuel/Energy Cost Saved (User %)]) + SUM(Table1[Maintenance costs saved (user %)])) - B46, "#.##0") -> $ -20 | C16: ='General Info'!$E$9 & " " & TEXT((SUM(Table1[Fuel/Energy costs saved (10%)]) + SUM(Table1[Maintenance cost saved (10%)])) - B46, "#.##0") -> $ -447 | D16: ='General Info'!$E$9 & " " & TEXT((SUM(Table1[Fuel/Energy costs saved (25%)]) + SUM(Table1[Maintenance cost saved (25%)])) - B46, "#.##0") -> $ 194 | E16: ='General Info'!$E$9 & " " & TEXT((SUM(Table1[Fuel/Energy costs saved (50%)]) + SUM(Table1[Maintenance cost saved (50%)])) - B46, "#.##0") -> $ 1.263
A17: Net Savings (Year 1) | B17: ='General Info'!$E$9 & " " & TEXT(( SUM(Table1[Fuel/Energy Cost Saved (User %)]) + SUM(Table1[Maintenance costs saved (user %)]) + SUM(Table1[Deprecation saved (user %)]) + SUM(Table1[Lease/rent saved (user%)]) + SUM(Table1[Insurance saved (User%)]) ) * 12 - (B46*12) -B45, "#.##0") -> $ 13.691 | C17: ='General Info'!$E$9 & " " & TEXT(( (SUM(Table1[Fuel/Energy costs saved (10%)]) + SUM(Table1[Maintenance cost saved (10%)]) + SUM(Table1[Deprecation saved (10%)]) + SUM(Table1[Lease/rent saved (10%)]) + SUM(Table1[Insurance saved (10%)]) ) * 12 - (B46 * 12) - B45 ), "#.##0") -> $ 1.345 | D17: ='General Info'!$E$9 & " " & TEXT(( (SUM(Table1[Fuel/Energy costs saved (25%)]) + SUM(Table1[Maintenance cost saved (25%)]) + SUM(Table1[Deprecation saved (25%)]) + SUM(Table1[Lease/rent saved (25%)]) + SUM(Table1[Insurance saved (25%)]) ) * 12 - (B46 * 12) - B45 ), "#.##0") -> $ 19.864 | E17: ='General Info'!$E$9 & " " & TEXT(( (SUM(Table1[Fuel/Energy costs saved (50%)]) + SUM(Table1[Maintenance cost saved (50%)]) + SUM(Table1[Deprecation saved (50%)]) + SUM(Table1[Lease/rent saved (50%)]) + SUM(Table1[Insurance saved (50%)]) ) * 12 - (B46 * 12) - B45 ), "#.##0") -> $ 50.727
A18: Net Savings Year 2 ( Cumulative) | B18: ='General Info'!$E$9 & " " & TEXT(( SUM(Table1[Fuel/Energy Cost Saved (User %)]) + SUM(Table1[Maintenance costs saved (user %)]) + SUM(Table1[Deprecation saved (user %)]) + SUM(Table1[Lease/rent saved (user%)]) + SUM(Table1[Insurance saved (User%)]) ) * 24 - (B46*24) -B45, "#.##0") -> $ 27.882 | C18: ='General Info'!$E$9 & " " & TEXT(( (SUM(Table1[Fuel/Energy costs saved (10%)]) + SUM(Table1[Maintenance cost saved (10%)]) + SUM(Table1[Deprecation saved (10%)]) + SUM(Table1[Lease/rent saved (10%)]) + SUM(Table1[Insurance saved (10%)]) ) * 24 - (B46 * 24) - B45 ), "#.##0") -> $ 3.191 | D18: ='General Info'!$E$9 & " " & TEXT(( (SUM(Table1[Fuel/Energy costs saved (25%)]) + SUM(Table1[Maintenance cost saved (25%)]) + SUM(Table1[Deprecation saved (25%)]) + SUM(Table1[Lease/rent saved (25%)]) + SUM(Table1[Insurance saved (25%)]) ) * 24 - (B46 * 24) - B45 ), "#.##0") -> $ 40.227 | E18: ='General Info'!$E$9 & " " & TEXT(( (SUM(Table1[Fuel/Energy costs saved (50%)]) + SUM(Table1[Maintenance cost saved (50%)]) + SUM(Table1[Deprecation saved (50%)]) + SUM(Table1[Lease/rent saved (50%)]) + SUM(Table1[Insurance saved (50%)]) ) * 24 - (B46 * 24) - B45 ), "#.##0") -> $ 101.955
A19: Net Savings Year 3 (Cumulative) | B19: ='General Info'!$E$9 & " " & TEXT(( SUM(Table1[Fuel/Energy Cost Saved (User %)]) + SUM(Table1[Maintenance costs saved (user %)]) + SUM(Table1[Deprecation saved (user %)]) + SUM(Table1[Lease/rent saved (user%)]) + SUM(Table1[Insurance saved (User%)]) ) * 36 - (B46*36) -B45, "#.##0") -> $ 42.073 | C19: ='General Info'!$E$9 & " " & TEXT(( (SUM(Table1[Fuel/Energy costs saved (10%)]) + SUM(Table1[Maintenance cost saved (10%)]) + SUM(Table1[Deprecation saved (10%)]) + SUM(Table1[Lease/rent saved (10%)]) + SUM(Table1[Insurance saved (10%)]) ) * 36 - (B46 * 36) - B45 ), "#.##0") -> $ 5.036 | D19: ='General Info'!$E$9 & " " & TEXT(( (SUM(Table1[Fuel/Energy costs saved (25%)]) + SUM(Table1[Maintenance cost saved (25%)]) + SUM(Table1[Deprecation saved (25%)]) + SUM(Table1[Lease/rent saved (25%)]) + SUM(Table1[Insurance saved (25%)]) ) * 36 - (B46 * 36) - B45 ), "#.##0") -> $ 60.591 | E19: ='General Info'!$E$9 & " " & TEXT(( (SUM(Table1[Fuel/Energy costs saved (50%)]) + SUM(Table1[Maintenance cost saved (50%)]) + SUM(Table1[Deprecation saved (50%)]) + SUM(Table1[Lease/rent saved (50%)]) + SUM(Table1[Insurance saved (50%)]) ) * 36 - (B46 * 36) - B45 ), "#.##0") -> $ 153.182
A20: Net Savings - WITHOUT reducing vehicles (Year 1) | B20: ='General Info'!$E$9 & " " & TEXT( (SUM(Table1[Fuel/Energy Cost Saved (User %)]) + SUM(Table1[Maintenance costs saved (user %)])) * 12 - (B46 * 12) - B45, "#.##0") -> $ -738 | C20: ='General Info'!$E$9 & " " & TEXT( (SUM(Table1[Fuel/Energy costs saved (10%)]) + SUM(Table1[Maintenance cost saved (10%)])) * 12 - (B46 * 12) - B45, "#.##0") -> $ -5.869 | D20: ='General Info'!$E$9 & " " & TEXT( (SUM(Table1[Fuel/Energy costs saved (25%)]) + SUM(Table1[Maintenance cost saved (25%)])) * 12 - (B46 * 12) - B45, "#.##0") -> $ 1.828 | E20: ='General Info'!$E$9 & " " & TEXT( (SUM(Table1[Fuel/Energy costs saved (50%)]) + SUM(Table1[Maintenance cost saved (50%)])) * 12 - (B46 * 12) - B45, "#.##0") -> $ 14.655
A21: Net Savings - WITHOUT reducing vehicles (Year 2) | B21: ='General Info'!$E$9 & " " & TEXT( (SUM(Table1[Fuel/Energy Cost Saved (User %)]) + SUM(Table1[Maintenance costs saved (user %)])) * 24 - (B46 * 24) - B45, "#.##0") -> $ -976 | C21: ='General Info'!$E$9 & " " & TEXT( (SUM(Table1[Fuel/Energy costs saved (10%)]) + SUM(Table1[Maintenance cost saved (10%)])) * 24 - (B46 * 24) - B45, "#.##0") -> $ -11.238 | D21: ='General Info'!$E$9 & " " & TEXT( (SUM(Table1[Fuel/Energy costs saved (25%)]) + SUM(Table1[Maintenance cost saved (25%)])) * 24 - (B46 * 24) - B45, "#.##0") -> $ 4.155 | E21: ='General Info'!$E$9 & " " & TEXT( (SUM(Table1[Fuel/Energy costs saved (50%)]) + SUM(Table1[Maintenance cost saved (50%)])) * 24 - (B46 * 24) - B45, "#.##0") -> $ 29.811
A22: Net Savings - WITHOUT reducing vehicles (Year 3) | B22: ='General Info'!$E$9 & " " & TEXT( (SUM(Table1[Fuel/Energy Cost Saved (User %)]) + SUM(Table1[Maintenance costs saved (user %)])) * 36 - (B46 * 36) - B45, "#.##0") -> $ -1.214 | C22: ='General Info'!$E$9 & " " & TEXT( (SUM(Table1[Fuel/Energy costs saved (10%)]) + SUM(Table1[Maintenance cost saved (10%)])) * 36 - (B46 * 36) - B45, "#.##0") -> $ -16.607 | D22: ='General Info'!$E$9 & " " & TEXT( (SUM(Table1[Fuel/Energy costs saved (25%)]) + SUM(Table1[Maintenance cost saved (25%)])) * 36 - (B46 * 36) - B45, "#.##0") -> $ 6.483 | E22: ='General Info'!$E$9 & " " & TEXT( (SUM(Table1[Fuel/Energy costs saved (50%)]) + SUM(Table1[Maintenance cost saved (50%)])) * 36 - (B46 * 36) - B45, "#.##0") -> $ 44.966
A23: Payback/ROI (months) | B23: =IF( (SUM(Table1[Fuel/Energy Cost Saved (User %)]) + SUM(Table1[Maintenance costs saved (user %)]) + SUM(Table1[Deprecation saved (user %)]) + SUM(Table1[Lease/rent saved (user%)]) + SUM(Table1[Insurance saved (User%)]) - B46) > 0, ROUNDUP( B45 / (SUM(Table1[Fuel/Energy Cost Saved (User %)]) + SUM(Table1[Maintenance costs saved (user %)]) + SUM(Table1[Deprecation saved (user %)]) + SUM(Table1[Lease/rent saved (user%)]) + SUM(Table1[Insurance saved (User%)]) - B46), 0), "No payback" ) -> 1 | C23: =IF( (SUM(Table1[Fuel/Energy costs saved (10%)]) + SUM(Table1[Maintenance cost saved (10%)]) + SUM(Table1[Deprecation saved (10%)]) + SUM(Table1[Lease/rent saved (10%)]) + SUM(Table1[Insurance saved (10%)]) - B46) > 0, ROUNDUP( B45 / (SUM(Table1[Fuel/Energy costs saved (10%)]) + SUM(Table1[Maintenance cost saved (10%)]) + SUM(Table1[Deprecation saved (10%)]) + SUM(Table1[Lease/rent saved (10%)]) + SUM(Table1[Insurance saved (10%)]) - B46), 0), "No payback" ) -> 4 | D23: =IF( (SUM(Table1[Fuel/Energy costs saved (25%)]) + SUM(Table1[Maintenance cost saved (25%)]) + SUM(Table1[Deprecation saved (25%)]) + SUM(Table1[Lease/rent saved (25%)]) + SUM(Table1[Insurance saved (25%)]) - B46) > 0, ROUNDUP( B45 / (SUM(Table1[Fuel/Energy costs saved (25%)]) + SUM(Table1[Maintenance cost saved (25%)]) + SUM(Table1[Deprecation saved (25%)]) + SUM(Table1[Lease/rent saved (25%)]) + SUM(Table1[Insurance saved (25%)]) - B46), 0), "No payback" ) -> 1 | E23: =IF( (SUM(Table1[Fuel/Energy costs saved (50%)]) + SUM(Table1[Maintenance cost saved (50%)]) + SUM(Table1[Deprecation saved (50%)]) + SUM(Table1[Lease/rent saved (50%)]) + SUM(Table1[Insurance saved (50%)]) - B46) > 0, ROUNDUP( B45 / (SUM(Table1[Fuel/Energy costs saved (50%)]) + SUM(Table1[Maintenance cost saved (50%)]) + SUM(Table1[Deprecation saved (50%)]) + SUM(Table1[Lease/rent saved (50%)]) + SUM(Table1[Insurance saved (50%)]) - B46), 0), "No payback" ) -> 1
B45: ='General Info'!E16 -> 500 | C45: B14
B46: ='General Info'!E21 + ('General Info'!E18 * 'General Info'!E20) -> 875 | C46: B15

Sheet How the formulas work
B2: Per vehicle monthly calculations
B3: Field | C3: Formula | D3: Explanation
B4: Monthly depreciation | C4: IF([@Ownership]="Owned"; ([@[Purchase Price]] - [@[Residual Value]]) / [@[Useful Life (years)]] / 12; "") | D4: This formula calculates how much value an owned vehicle loses per month over its useful life. It only applies to owned vehicles and ensures that depreciation is not calculated for rented ones.
B5: Monthly fuel/energy cost per vehicle | C5: IF([@Fuel Type]="Diesel"; ([@[Avg monthly KM per vehicle]] / 100) * [@[Fuel cons. (l/100km)]] * 'General Info'!Diesel price per litre; IF([@Fuel Type]="Petrol"; ([@[Avg monthly KM per vehicle]] / 100) * [@[Fuel cons. (l/100km)]] * 'General Info'!Petrol price per litre; IF([@Fuel Type]="Electric"; ([@[Avg monthly KM per vehicle]] / 100) * [@[Electric cons. (kWh/100km)]] * 'General Info'!Electricity price per kWh; ""))) | D5: This formula calculates the monthly energy cost per vehicle by taking the average number of kilometres driven per vehicle each month, dividing it by 100 to align with the consumption unit (litres or kWh per 100 km), and then multiplying this by the vehicle’s specific fuel or energy consumption. The result is then multiplied by the applicable fuel or electricity price from the General Info sheet, depending on whether the vehicle uses diesel, petrol, or electricity.
B6: Monthly total cost per vehicle | C6: IF([@Ownership]="Owned";[@[Monthly Insurance ]]+[@[Avg monthly maintenance]]+[@[Monthly depreciation]]+[@[Monthly fuel/energy cost per vehicle]];[@[Monthly Insurance ]]+[@[Avg monthly maintenance]]+[@[Monthly Lease/Rent ]]+[@[Monthly fuel/energy cost per vehicle]]) | D6: This formula calculates the total monthly cost per vehicle by first checking whether the vehicle is owned or rented. If the vehicle is owned, the total cost includes monthly insurance, average monthly maintenance, monthly depreciation, and the monthly fuel or energy cost. If the vehicle is rented, the formula instead includes monthly insurance, average monthly maintenance, monthly lease or rent, and the monthly fuel or energy cost. This ensures that only the relevant cost components are included based on the vehicle's ownership status.
B8: Per vehicle monthly scenario calculations
B9: Field | C9: Formula | D9: Explanation
B10: Monthly KM reduced (10%, 25%, 50%) | C10: ([@[Number of vehicles]] * [@[Avg monthly KM per vehicle]] * X)*(1 - 'General Info'!$E$23)X 0.10 for 10%, 0.25 for 25%, and 0.50 for 50% | D10: This formula estimates the reduction in kilometres driven by your fleet when a percentage (10%, 25%, or 50%) of your transport demand shifts to a ride sharing scheme. It multiplies the number of vehicles by the average kilometres driven per vehicle and applies the chosen shift percentage (X). It then adjusts this based on the percentage of shared trips not using your own vehicles, a value specified in the General Info sheet, to reflect only the reduction attributable to external sharing.
B11: Fuel/Energy costs saved (10%, 25%, 50%) | C11: IF([@[Fuel Type]]="Electric", ([@[Monthly KM reduced (X%)]] * ([@[Electric cons. (kWh/100km)]] / 100)) * 'General Info'!$E$12, ([@[Monthly KM reduced (X%)]] * ([@[Fuel cons. (l/100km)]] / 100)) * IF([@[Fuel Type]]="Petrol", 'General Info'!$E$10, 'General Info'!$E$11) ) | D11: This formula calculates the amount of fuel or energy cost saved when 10%, 25%, or 50% of your transport demand shifts away from your fleet. The calculation structure is identical for each scenario, only the percentage (X) changes, impacting the reduced distance and subsequent savings.
B12: Maintenance cost saved (10%, 25%, 50%) | C12: [@[Avg monthly maintenance]] * X * (1 - 'General Info'!$E$23) | D12: This formula estimates the monthly maintenance cost savings per vehicle when 10% of transport demand shifts away from your fleet. It takes 10% of the average monthly maintenance cost per vehicle and adjusts it based on the percentage of shared trips not using your own vehicles. The adjustment factor comes from the General Info sheet under “% of shared trips using your vehicles.” This ensures that only the share of avoided maintenance costs due to reduced usage of your own fleet is included in the calculation.
B13: Fuel saved (10%, 25%, 50%) | C13: IF(OR([@[Fuel Type]]"Petrol"; [@[Fuel Type]]"Diesel"); [@[Monthly KM reduced (X%)]] * ([@[Fuel cons. (l/100km)]] / 100); "") | D13: This formula calculates the number of litres of fuel saved per vehicle when a percentage (10%, 25%, or 50%) of transport demand shifts to a ride sharing scheme. It applies only to vehicles that use petrol or diesel. It multiplies the monthly kilometres reduced (X%) by the vehicle’s fuel consumption per 100 km. If the vehicle is electric, the formula returns a blank. This helps quantify the environmental impact of reduced usage of internal combustion engine vehicles.
B14: Energy saved (10%, 25%, 50%) | C14: IF([@[Fuel Type]]"Electric"; [@[Monthly KM reduced (X%)]] * ([@[Electric cons. (kWh/100km)]] / 100); "") | D14: This formula calculates the number of kilowatt-hours (kWh) of electricity saved per electric vehicle when a percentage (10%, 25%, or 50%) of transport demand is shifted away. It multiplies the monthly kilometres reduced by the vehicle’s electric consumption per 100 km. The formula applies only to electric vehicles and returns a blank for petrol or diesel, ensuring accurate energy savings are captured.
B15: CO₂ saved (10%, 25%, 50%) | C15: IF([@[Fuel Type]]="Petrol"; [@[Fuel saved (X%)]] * 'General Info'!$E$14; IF([@[Fuel Type]]="Diesel"; [@[Fuel saved (X%)]] * 'General Info'!$E$13; IF([@[Fuel Type]]="Electric"; [@[Energy saved (X%)]] * 'General Info'!$E$15; ""))) | D15: This formula calculates the number of kilowatt-hours (kWh) of electricity saved per electric vehicle when a percentage (10%, 25%, or 50%) of transport demand is shifted away. It multiplies the monthly kilometres reduced by the vehicle’s electric consumption per 100 km. The formula applies only to electric vehicles and returns a blank for petrol or diesel, ensuring accurate energy savings are captured.
B16: Depreciation saved (10%, 25%, 50%) | C16: IF(Ownership="Owned";('ROI & Scenario Analysis'!$C$4*[@[Number of vehicles]])*[@[Monthly depreciation]];"") | D16: This formula estimates the depreciation costs that can be saved if your fleet size is reduced due to a shift in transport demand. It applies only to vehicles marked as “Owned.” The number of vehicles is multiplied by the estimated fleet reduction percentage from the 'ROI & Scenario Analysis' sheet (e.g. 6% for 10%, 15% for 25%, 30% for 50%), then by the monthly depreciation. These percentages are based on Fleet Forum’s assumptions drawn from experience with organisations implementing ride sharing.
B17: Lease/Rent saved (10%, 25%, 50%) | C17: IF(Ownership="Rented";('ROI & Scenario Analysis'!$C$4*[@[Number of vehicles]])*[@[Monthly Lease/Rent ]];"") | D17: This formula estimates the lease or rent cost savings if your fleet size is reduced due to a shift in transport demand. It applies only to vehicles marked as “Rented.” The calculation multiplies the number of rented vehicles by the fleet reduction percentage (from the 'ROI & Scenario Analysis' sheet) and then by the monthly lease or rent cost. Fleet reduction rates used (6%, 15%, 30%) are assumptions from Fleet Forum’s experience with ride sharing schemes.
B18: Insurance saved (10%, 25%, 50%) | C18: ROI & Scenario Analysis'!$C$4 * [@[Monthly Insurance ]] | D18: This formula calculates the insurance cost savings from reducing fleet size under different transport demand shift scenarios. It multiplies the estimated fleet reduction (from the 'ROI & Scenario Analysis' sheet) by the monthly insurance cost per vehicle. This applies to both owned and rented vehicles. The reduction rates used are based on Fleet Forum’s insights: 6% for 10%, 15% for 25%, and 30% for 50% shift scenarios.
B20: Ride sharing scenario savings
B21: Field | C21: Formula | D21: Explanation
B22: Estimated Fleet Reduction | C22: % transport demand shift to rise ahring *60% | D22: This formula estimates the percentage reduction in your fleet size that can be achieved based on the percentage of your transport demand expected to be shifted to ride sharing. The input comes from the "General Info" sheet (cell E22), where users specify the share of their transport demand they expect to shift , Or the static columns of 10, 25 and 50%. This input is then multiplied by 0.6 — a factor based on Fleet Forum’s experience indicating that, on average, a 10% shift in demand results in approximately a 6% reduction in fleet size. This assumption helps translate transport demand shifts into practical implications for vehicle fleet planning.
B23: Current Nr of vehicles | C23: SUM(Table1[Number of vehicles]) | D23: This formula calculates the total number of vehicles currently in your fleet by summing all values in the column Number of vehicles from the main data table (named Table1). Each row in this column represents the number of vehicles of a specific type or category. By adding them together, you get a comprehensive count of all vehicles across your fleet. This total serves as a reference point for determining potential fleet reductions and cost savings in the ROI and scenario analysis.
B24: Vehicles Reduced | C24: Current Number of Vehicles * Estimated Fleet Reduction Percentage | D24: This formula calculates how many vehicles can potentially be removed from your fleet as a result of shifting a portion of your transport demand to ride sharing. It multiplies the current number of vehicles (B5) by the estimated fleet reduction percentage (B4), which is based on the percentage of transport demand shared (input in the General Info sheet). This gives an estimate of how many vehicles are no longer needed if the shared mobility scenario is implemented.
B25: Km Reduced (monthly) | C25: SUM(Table1[Monthly KM Reduced (X %)]) | D25: This formula calculates the total number of kilometres that will no longer be driven by your fleet each month when a portion of your transport demand shifts to ride sharing. It sums the values from the column Monthly KM Reduced (X %) in your main data table (Table1), where X represents the selected shift percentage (e.g., 10%, 25%, or 50%). These values already factor in both the shift percentage and the share of trips not conducted with your own vehicles, based on information provided in the General Info sheet. The result reflects the total monthly driving distance avoided by your fleet under the selected scenario.
B26: Fuel saved in litres (monthly) | C26: TEXT(SUM(Table1[Fuel saved (X%)])*0,8; "0") & " – " & TEXT(SUM(Table1[Fuel saved (X%)]); "0") & " litres" | D26: This formula calculates a range for the estimated total monthly fuel savings in litres across all petrol and diesel vehicles. It sums the values from the “Fuel saved” column in the fleet data table, which is based on the percentage of transport demand shifted to ride sharing. To reflect potential variation in actual savings, the total is multiplied by 0.8 to create a conservative lower estimate, while the full total is shown as the upper estimate. The result is displayed as a range (e.g., “240 – 300 litres”), helping users interpret the savings as an estimate rather than a fixed outcome. All numbers are rounded to whole litres for readability.
B27: Energy saved (monthly) | C27: TEXT(SUM(Table1[Energy Saved (User %)])*0,8; "0") & " – " & TEXT(SUM(Table1[Energy Saved (User %)]); "0") & " kWh" | D27: This formula calculates the estimated monthly energy savings (in kilowatt-hours) resulting from a shift in transport demand to ride sharing. It sums all values from the Energy Saved (X %) column in your main data table (Table1), where X represents the selected shift percentage (such as 10%, 25%, or 50%). The result is displayed as a range: the lower bound assumes that 80% of the calculated savings are realised, while the upper bound reflects the full potential savings. The final output is presented as a text string with the suffix "kWh" to clearly indicate the unit of measurement.
B28: CO₂ Saved (monthly) | C28: TEXT(SUM(Table1[CO2 Saved (User %)])*0,8; "0") & " – " & TEXT(SUM(Table1[CO2 Saved (User %)]); "0") & " kg" | D28: This formula calculates the estimated monthly reduction in CO₂ emissions (in kilograms) resulting from a portion of transport demand being shifted to ride sharing. It adds up the values from the CO₂ Saved (X %) column in your main data table (Table1), where X represents the selected demand shift percentage. The result is displayed as a range: the lower bound reflects a conservative estimate assuming 80% of the potential CO₂ savings are realised, while the upper bound represents the full possible savings. The result is shown as a formatted text string with "kg" to clearly indicate the unit.
B29: Variable Cost Savings | C29: General Info'!$E$9 & " " & TEXT((SUM(Table1[Fuel/Energy Cost Saved (User %)]) + SUM(Table1[Maintenance costs saved (user %)]))*0,8; "#.##0") & " – " & 'General Info'!$E$9 & " " & TEXT((SUM(Table1[Fuel/Energy Cost Saved (User %)]) + SUM(Table1[Maintenance costs saved (user %)])); "#.##0") | D29: This formula calculates the estimated monthly savings on variable costs, specifically fuel/energy and maintenance. It adds the total savings from the Fuel/Energy Cost Saved (User %) and Maintenance Costs Saved (User %) columns. The result is displayed as a range: a conservative lower estimate (80% of calculated savings) and a full savings estimate.
B30: Fixed Cost Savings | C30: General Info'!$E$9 & " " & TEXT((SUM(Table1[Monthly depreciation]) * B6 + SUM(Table1[Monthly Lease/Rent ]) * B6 + SUM(Table1[[Monthly Insurance ]]) * B6) * 0,8; "#.##0") & " – " & 'General Info'!$E$9 & " " & TEXT((SUM(Table1[Monthly depreciation]) * B6 + SUM(Table1[Monthly Lease/Rent ]) * B6 + SUM(Table1[[Monthly Insurance ]]) * B6); "#.##0") | D30: This formula estimates the monthly savings on fixed costs: depreciation, lease or rent, and insurance. Each per-vehicle monthly cost is multiplied by the number of vehicles that can be reduced, based on the estimated fleet reduction. The result is presented as a range (80% to 100% of calculated savings).
B31: Total Cost Savings | C31: General Info'!$E$9 & " " & TEXT( ( SUM(Table1[Fuel/Energy Cost Saved (User %)]) + SUM(Table1[Maintenance costs saved (user %)]) + SUM(Table1[Monthly depreciation]) * B6 + SUM(Table1[Monthly Lease/Rent ]) * B6 + SUM(Table1[[Monthly Insurance ]]) * B6 ) * 0,8; "#.##0" ) & " – " & 'General Info'!$E$9 & " " & TEXT( ( SUM(Table1[Fuel/Energy Cost Saved (User %)]) + SUM(Table1[Maintenance costs saved (user %)]) + SUM(Table1[Monthly depreciation]) * B6 + SUM(Table1[Monthly Lease/Rent ]) * B6 + SUM(Table1[[Monthly Insurance ]]) * B6 ); "#.##0" ) | D31: This formula calculates the total monthly cost savings by summing both variable and fixed savings. It includes: Fuel/Energy and Maintenance savings Depreciation, Lease/Rent, and Insurance savings, based on vehicles reduced The total is displayed as a range (80% to 100%) to reflect variability in real-world savings.
B32: One-Time Investment | C32: General Info'!$E$9 & " " & 'General Info'!$E$16 | D32: Displays the estimated one-time investment required to implement the ride sharing project. The value is pulled from the General Info sheet (cell E16) and serves as a fixed input for ROI calculations.
B33: Monthly Recurring Costs | C33: 'General Info'!E9 & " " & TEXT('General Info'!E21+('General Info'!E18*'General Info'!E20); "#.##0") | D33: Calculates the ongoing monthly costs for running the ride sharing initiative. It includes HR/support costs and the proportional time cost of the manager overseeing the project (based on % input in the General Info sheet).
B34: MonthlyNetSavings | C34: General Info'!$E$9 & " " & TEXT((SUM(Table1[Fuel/Energy Cost Saved (User %)]) + SUM(Table1[Maintenance costs saved (user %)])) - B46; "#.##0") | D34: Calculates how much the organisation saves each month after deducting recurring costs. It takes total variable cost savings (fuel/energy + maintenance) and subtracts monthly recurring project costs.
B35: Net Savings (Year 1) | C35: General Info'!$E$9 & " " & TEXT(( SUM(Table1[Fuel/Energy Cost Saved (User %)]) + SUM(Table1[Maintenance costs saved (user %)]) + SUM(Table1[Depreciation saved (user %)]) + SUM(Table1[Lease/rent saved (user%)]) + SUM(Table1[Insurance saved (User%)]) ) * 12 - (B46*12) -B45; "#.##0") | D35: This formula calculates the net financial benefit of the ride sharing initiative during the first year. It works by: 1.Summing all monthly cost savings, including: - Fuel/Energy - Maintenance - Depreciation - Lease/Rent - Insurance 2.Multiplying the total monthly savings by 12 to get the annual savings. 3. Subtracting the one-time investment cost (from the General Info sheet). 4.Subtracting annualised recurring costs, which include: - Monthly HR/support costs - A portion of the manager’s monthly salary, based on their time spent on the project These are summed in cell B46, and multiplied by 12 to reflect a full year of ongoing costs. The result represents the total net savings your organisation can expect in the first year of implementing the ride sharing initiative, after accounting for both upfront and operational costs.
B36: Net Savings Year 2 ( Cumulative) | C36: General Info'!$E$9 & " " & TEXT(( SUM(Table1[Fuel/Energy Cost Saved (User %)]) + SUM(Table1[Maintenance costs saved (user %)]) + SUM(Table1[Depreciation saved (user %)]) + SUM(Table1[Lease/rent saved (user%)]) + SUM(Table1[Insurance saved (User%)]) ) * 24 - (B46*24) -B45; "#.##0") | D36: Same calculation structure as Year 1, but extended over 24 months instead of 12. It includes: 24 months of cost savings 24 months of recurring project costs The one-time investment is still only subtracted once
B37: Net Savings Year 3 (Cumulative) | C37: General Info'!$E$9 & " " & TEXT(( SUM(Table1[Fuel/Energy Cost Saved (User %)]) + SUM(Table1[Maintenance costs saved (user %)]) + SUM(Table1[Depreciation saved (user %)]) + SUM(Table1[Lease/rent saved (user%)]) + SUM(Table1[Insurance saved (User%)]) ) * 36 - (B46*36) -B45; "#.##0") | D37: Same calculation structure as Year 1, but extended over 36 months instead of 12. It includes: 36 months of cost savings 36 months of recurring project costs The one-time investment is still only subtracted once
B38: Net Savings - WITHOUT reducing vehicles (Year 1) | C38: General Info'!$E$9 & " " & TEXT( (SUM(Table1[Fuel/Energy Cost Saved (User %)]) + SUM(Table1[Maintenance costs saved (user %)])) * 12 - (B46 * 12) - B45; "#.##0") | D38: This formula calculates the net savings over the first year assuming that the number of vehicles in your fleet remains unchanged — in other words, it estimates the financial benefit of reduced usage without reducing the fleet size. It starts by summing the monthly fuel/energy and maintenance cost savings from the main data table (Table1) and multiplies the total by 12 to reflect the full year. These are the only savings considered here because fixed costs such as depreciation, lease/rent, and insurance are not impacted if the fleet size stays the same. From this annual savings amount, it subtracts the monthly recurring project costs (stored in cell B46, which includes HR/support and management time from the General Info sheet), multiplied by 12 to cover the full year. It also subtracts the one-time project investment (stored in B45, equal to 'General Info'!E16). The result shows the realistic financial impact of implementing the ride sharing initiative without scaling down the fleet. The output is formatted as a currency using the symbol specified in 'General Info'!E9.
B39: Net Savings - WITHOUT reducing vehicles (Year 2) | C39: General Info'!$E$9 & " " & TEXT( (SUM(Table1[Fuel/Energy Cost Saved (User %)]) + SUM(Table1[Maintenance costs saved (user %)])) * 24 - (B46 * 24) - B45; "#.##0") | D39: This formula calculates the cumulative net financial benefit over two years when the fleet size remains unchanged. It sums the monthly savings on fuel/energy and maintenance costs from the main data table (Table1) and multiplies the result by 24 to represent two years of savings. These are the only savings considered because fixed costs (depreciation, lease, insurance) remain unaffected if the number of vehicles does not change. From this total, the formula subtracts the recurring project costs (cell B46), multiplied by 24 months, and the one-time investment cost (cell B45, from 'General Info'!E16). The resulting figure reflects the total cost savings from improved operational efficiency without reducing the size of the fleet, formatted using the currency symbol defined in 'General Info'!E9.
B40: Net Savings - WITHOUT reducing vehicles (Year 3) | C40: General Info'!$E$9 & " " & TEXT( (SUM(Table1[Fuel/Energy Cost Saved (User %)]) + SUM(Table1[Maintenance costs saved (user %)])) * 36 - (B46 * 36) - B45; "#.##0") | D40: This formula estimates the total net savings over a three-year period, assuming the organisation does not reduce the size of its vehicle fleet. It calculates the total of monthly fuel/energy and maintenance savings from Table1, multiplies by 36 months to represent three years, and then subtracts the monthly recurring project costs (cell B46) over the same period. Additionally, it subtracts the one-time investment cost (cell B45). Fixed cost savings are excluded, as the fleet size remains constant. The final output provides a clear picture of the long-term savings achievable through behavioural and operational changes alone, expressed in the currency pulled from 'General Info'!E9.
B41: Payback/ROI (months) | C41: IF( (SUM(Table1[Fuel/Energy Cost Saved (User %)]) + SUM(Table1[Maintenance costs saved (user %)]) + SUM(Table1[Depreciation saved (user %)]) + SUM(Table1[Lease/rent saved (user%)]) + SUM(Table1[Insurance saved (User%)]) - B46) > 0; ROUNDUP( B45 / (SUM(Table1[Fuel/Energy Cost Saved (User %)]) + SUM(Table1[Maintenance costs saved (user %)]) + SUM(Table1[Depreciation saved (user %)]) + SUM(Table1[Lease/rent saved (user%)]) + SUM(Table1[Insurance saved (User%)]) - B46); 0); "No payback" ) | D41: This formula calculates the number of months required to recover the initial one-time investment based on the monthly net savings generated from the project. It first sums all monthly savings from the main data table (Table1), including fuel/energy savings, maintenance cost savings, depreciation savings (for owned vehicles), lease/rent savings (for rented vehicles), and insurance savings. It then subtracts the monthly recurring project costs (B46, which combines HR/support costs and manager time from the General Info sheet). If the resulting monthly savings are greater than zero, the formula divides the one-time project cost (B45) by these net monthly savings to determine how many months it will take to break even. The result is rounded up to the nearest whole month. If the monthly savings do not exceed the recurring costs, the formula returns "No payback", indicating that the investment cannot be recovered under the current assumptions.

Sheet Change Management Costs (hidden)
C1: Social investment required for kick-off phase
D3: CHANGE MANAGEMENT COSTS
D6: Organisation change readiness (at country level) | E6: 1-Prone to change/ agile
E7: 2-Medium
E8: 3-Conservative
D9: Kick-off phase duration assumption: | E9: 3-6 months ?
E12: % FTE (full time equivalent) | F12: Assumed tasks
D13: Logistics coordinator | E13: 15 | F13: Participation in project meetings,
F14: Provision of inputs/ data,
F15: Review of current fleet management tactics/ strategy (running a right sizing exercise…),
F16: Modification of job descriptions of logisticians to embed new responsibilities
F17: Modifications os manuals, guidances, policies to embed sharing practices
D18: Logistics officer | E18: 30 | F18: Being trained to new taks, ride-sharing related
F19: Engage with drivers, sensitize team about project modalities
F20: Engagement with other participating agencies log officer to coordinate
D21: Finance / HR | F21: Participation in project meetings
F22: Processing reimbursment requests received/ emitted,
F23: Tracking payments and reception,
F24: Doing the maths around what costs to cut to render savngs real…,
F25: Modification of job descriptions?
D26: Country director | F26: Availability to be presented the project
F27: Mobilisation of team in Senior Management Team meetings
F28: Sensitization sessions/ decisions making towards staff
D29: Security Focal Points | F29: Availability to be presented the project
F30: Identify risks and opportunties for safety and security management
F31: Propose solutions, contribute to making the project happen

Sheet Impact Summary (hidden)
A2: Metric | B2: Result
A3: Fleet reduction % | B3: ='ROI & Scenario Analysis'!B4 -> 12% | C3: ="Based on the ride sharing analysis, the fleet size of "&'General Info'!E5&" could be reduced by "&TEXT(B3,"0%")&" ("&ROUND(B4,0)&" vehicles removed)." &"This means fewer vehicles are needed to meet the same transport demand, helping the organisation to work more efficiently and sustainably."&CHAR(10)&CHAR(10) &"This change would lead to a reduction of approximately "&B5&" kilometers traveled each month, saving around "&B6&" litres of fuel per month and reducing CO2 emissions by "&B7&" kg per month. These reductions directly contribute to lower environmental impact and support sustainability goals."&CHAR(10)&CHAR(10) &"The estimated total cost savings in the first year would range between "&B8&", while net savings after accounting for all costs would be "&B9&". The initial investment to start the vehicle sharing scheme could be recovered within "&B10&" month(s)."&CHAR(10)&CHAR(10) &"These calculations are based on a transport demand sharing rate of "&TEXT('General Info'!E22,"0%")&", meaning nearly a third of trips could be completed using shared vehicles instead of individual ones." -> Based on the ride sharing analysis, the fleet size of Example Organisation could be reduced by 12% (4 vehicles removed).This means fewer vehicles are needed to meet the same transport demand, helping the organisation to work more efficiently and sustainably. This change would lead to a reduction of approximately 5000 kilometers traveled each month, saving around 358 – 448 litres litres of fuel per month and reducing CO2 emissions by 938 – 1173 kg kg per month. These reductions directly contribute to lower environmental impact and support sustainability goals. The estimated total cost savings in the first year would range between $ 9.290 – $ 11.613, while net savings after accounting for all costs would be $ 13.691. The initial investment to start the vehicle sharing scheme could be recovered within 1 month(s). These calculations are based on a transport demand sharing rate of 20%, meaning nearly a third of trips could be completed using shared vehicles instead of individual ones.
A4: Vehicles reduced | B4: ='ROI & Scenario Analysis'!B6 -> 4
A5: Monthly km reduced | B5: ='ROI & Scenario Analysis'!B7 -> 5000
A6: Fuel savings (litres) | B6: ='ROI & Scenario Analysis'!B8 -> 358 – 448 litres
A7: CO2 saved (kg) | B7: ='ROI & Scenario Analysis'!B10 -> 938 – 1173 kg
A8: Total cost savings (€) | B8: ='ROI & Scenario Analysis'!B13 -> $ 9.290 – $ 11.613
A9: Net savings (€) | B9: ='ROI & Scenario Analysis'!B17 -> $ 13.691
A10: Payback period (months) | B10: ='ROI & Scenario Analysis'!B23 -> 1
